Body Name,Body,Service Level,Expense Type,Expense Code,Narrative,Date,Transaction Number,Amount,Capital and Revenue,Supplier Name,Supplier ID
South Ribble Borough Council,http://statistics.data.gov.uk/id/local-authority/30UE,Central Support Services,Training Expenses,1402,ANNUAL SUBSCRIPTION TO TRAINING COURSES (UP TO 52 DIFFERENT COURSES) FOR NAMES REDACTED,12/11/2021,0000473227,"1,560.00",Revenue,ABC FOOD LAW,0
South Ribble Borough Council,http://statistics.data.gov.uk/id/local-authority/30UE,Central Support Services,Premises Repair & Mtne,2020,Please provide skip as per NAME REDACTED for the Civic Centre,17/11/2021,0000473370,285.00,Revenue,ABLE SKIP HIRE LTD,0
South Ribble Borough Council,http://statistics.data.gov.uk/id/local-authority/30UE,Democratic Represent and  Mgnt,Expenses,463A,PLEASE PROVIDE PA SYSTEM ETC AS PER QUOTATION NUMBER 571 INCLUDING DELIVERY AND COLLECTION,17/11/2021,0000473368,385.00,Revenue,ACTIVE AV LTD,0
South Ribble Borough Council,http://statistics.data.gov.uk/id/local-authority/30UE,Recreation & Sport,Services,4510,1st4sport Level 3 Award in Education and Training (QCF) - BUSINESS HEALTH MATTERS 2 X 310 (NAMES REDACTED),24/11/2021,0000473495,620.00,Revenue,ACTIVE LANCASHIRE,0
South Ribble Borough Council,http://statistics.data.gov.uk/id/local-authority/30UE,Economic Development,Miscellaneous Expenses,485K,Supply two medium table cloths with the new council logo � delivery to be confirmed Cost 330.00,24/11/2021,0000473230,275.00,Revenue,AD OPTIONS LTD,0
South Ribble Borough Council,http://statistics.data.gov.uk/id/local-authority/30UE,Central Support Services,Services,4570,Spec Repair JFC 17385 YD19 ATY,17/11/2021,0000473226,370.00,Revenue,Alan Edwards (Edwards Technical),0
South Ribble Borough Council,http://statistics.data.gov.uk/id/local-authority/30UE,Community Development,Miscellaneous Expenses,4861,Path at Eagle and Child Bowling Club,17/11/2021,0000473372,"4,619.00",Revenue,ALBEN LANDSCAPES,0
South Ribble Borough Council,http://statistics.data.gov.uk/id/local-authority/30UE,Central Support Services,Services,4548,"Scope confirmation, documentation review, site evaluation, on-site review of management system, Annual Registration Fee (includes audits)",24/11/2021,0000472924,830.00,Revenue,ALCUMUS ISOQAR LTD,0
South Ribble Borough Council,http://statistics.data.gov.uk/id/local-authority/30UE,Central Support Services,Services,4548,Stage 1 Scope Confirmation 830 + VAT,24/11/2021,0000472924,830.00,Revenue,ALCUMUS ISOQAR LTD,0
South Ribble Borough Council,http://statistics.data.gov.uk/id/local-authority/30UE,Recreation & Sport,Premises Repair & Mtne,2020,"External Preparation & Painting Works, Bamber Bridge Leisure Centre, South Ribble Tennis Centre, Penwarthen Leisure Centre, Leyland Leisure",17/11/2021,0000473167,"20,707.00",Revenue,Alfred Bagnall & Sons (North West) Limited,0
South Ribble Borough Council,http://statistics.data.gov.uk/id/local-authority/30UE,Local Tax Collection,Miscellaneous Expenses,4811,post office,10/11/2021,0000473075,625.60,Revenue,ALLPAY LTD,0
South Ribble Borough Council,http://statistics.data.gov.uk/id/local-authority/30UE,Local Tax Collection,Miscellaneous Expenses,4811,paypoint,10/11/2021,0000473075,73.34,Revenue,ALLPAY LTD,0
South Ribble Borough Council,http://statistics.data.gov.uk/id/local-authority/30UE,Local Tax Collection,Miscellaneous Expenses,4811,web,10/11/2021,0000473075,46.00,Revenue,ALLPAY LTD,0
South Ribble Borough Council,http://statistics.data.gov.uk/id/local-authority/30UE,Recreation & Sport,Water,2511,7/9 to 6/10/21,03/11/2021,0000472738,461.26,Revenue,Anglian Water Business (National) t/as Wave Utilit,0
South Ribble Borough Council,http://statistics.data.gov.uk/id/local-authority/30UE,Recreation & Sport,Water,2511,7/9 to 6/10/21,03/11/2021,0000472739,915.93,Revenue,Anglian Water Business (National) t/as Wave Utilit,0
South Ribble Borough Council,http://statistics.data.gov.uk/id/local-authority/30UE,Recreation & Sport,Water,2511,7/9 to 6/10/2021,03/11/2021,0000472740,260.66,Revenue,Anglian Water Business (National) t/as Wave Utilit,0
South Ribble Borough Council,http://statistics.data.gov.uk/id/local-authority/30UE,Recreation & Sport,Water,2511,7/9 to 6/10/21,03/11/2021,0000472741,675.49,Revenue,Anglian Water Business (National) t/as Wave Utilit,0
South Ribble Borough Council,http://statistics.data.gov.uk/id/local-authority/30UE,Recreation & Sport,Water,2511,2/6 to 6/7/21,03/11/2021,0000472883,"1,069.11",Revenue,Anglian Water Business (National) t/as Wave Utilit,0
South Ribble Borough Council,http://statistics.data.gov.uk/id/local-authority/30UE,Recreation & Sport,Water,2511,7/9 to 6/10/21,03/11/2021,0000472981,"1,302.15",Revenue,Anglian Water Business (National) t/as Wave Utilit,0
South Ribble Borough Council,http://statistics.data.gov.uk/id/local-authority/30UE,Elections,Miscellaneous Expenses,4421,Use of venue for the Lancashire County Council and Police and Crime Commissioner Elections on 6 May 2021. Access required 6.15am-10.15pm,17/11/2021,0000472500,485.00,Revenue,APCMC LTD,0
South Ribble Borough Council,http://statistics.data.gov.uk/id/local-authority/30UE,Elections,Miscellaneous Expenses,4421,.,17/11/2021,0000472500,485.00,Revenue,APCMC LTD,0
South Ribble Borough Council,http://statistics.data.gov.uk/id/local-authority/30UE,Central Support Services,Furniture- Equip & Materials,4040,2 x Filter Elements 2 x Hydraulic Filters MX19 JMO  JFC17304,10/11/2021,0000472675,540.00,Revenue,BALMERS GM LTD,0
South Ribble Borough Council,http://statistics.data.gov.uk/id/local-authority/30UE,Central Support Services,Furniture- Equip & Materials,4040,1 x track TMF05TR JFC17504,24/11/2021,0000473392,338.00,Revenue,BALMERS GM LTD,0
South Ribble Borough Council,http://statistics.data.gov.uk/id/local-authority/30UE,Capital,Deferrd Chgs-Improvemnt Grants,C570,"DFG WORK TO ADAPT A BATHROOM AT ADDRESS REDACTED AS PER QUOTE SUPPLIED AND SRBC PLANS, CLIENT CONTRIBUTION",12/11/2021,0000473204,"2,964.09",Revenue,Bambers Remedial Contractors Ltd,0
South Ribble Borough Council,http://statistics.data.gov.uk/id/local-authority/30UE,Development Control,Services,4541,Employment Land Review Update Study,24/11/2021,0000473365,"5,760.00",Revenue,BE LTD,0
South Ribble Borough Council,http://statistics.data.gov.uk/id/local-authority/30UE,Central Support Services,Furniture- Equip & Materials,4010,"Please supply 4 x Dustblocker MEDI 10, 230V, 1300 m3/h Variable Airflow, G2/G3/H13/Carbon/UV-C Filters to the Civic Centre",24/11/2021,0000473235,"9,000.00",Revenue,Beacon Group International Ltd T/A Dust Arrest,0
South Ribble Borough Council,http://statistics.data.gov.uk/id/local-authority/30UE,Capital,Deferrd Chgs-Improvemnt Grants,C570,DFG WORK TO ADAPT A LEVEL ACCESS BATHROOM AT ADDRESS REDACTED. 50% OF COST COVERED BY ONWARDS HOMES,17/11/2021,0000473362,"1,809.31",Revenue,BRYAN LEE BUILDING CONTRACTORS LTD,0
South Ribble Borough Council,http://statistics.data.gov.uk/id/local-authority/30UE,Recreation & Sport,Furniture- Equip & Materials,4040,"2X MICROFIBRE CLOTH BLUE, 6X MOP HEAD 12OZ/340G, 1X PURELL HAND RUB 1200ML, 3 X TORK TOILET ROLL 170M WHITE 2PLY",24/11/2021,0000471751,251.81,Revenue,Bunzl UK Ltd T/A Cleaning and HygieneSupplies,0
South Ribble Borough Council,http://statistics.data.gov.uk/id/local-authority/30UE,Economic Development,Miscellaneous Expenses,4851,"A Taste of Leyland - 25 Sept 2021, 15 Tables (8 per table) - 120, 90 Chairs (2.50 per chair) - 225, Delivery & Collection, Total - 345",03/11/2021,0000472160,345.00,Revenue,C K Marquees,0
South Ribble Borough Council,http://statistics.data.gov.uk/id/local-authority/30UE,Central Support Services,Premises Repair & Mtne,2021,"Annual PAT Testing 2021/2022 for South Ribble Borough Council - at Civic Centre, Leyland PR25 1DH",10/11/2021,0000473114,373.75,Revenue,Calbarrie Compliance Services Ltd,0
South Ribble Borough Council,http://statistics.data.gov.uk/id/local-authority/30UE,Central Support Services,Services,4520,LADS Programme during the period 1st April 2021 to 30th September 2021 in relation to the Scottish Child Disability Payment.,03/11/2021,0000472947,"2,910.72",Revenue,CAPITA BUSINESS SERVICES LTD,0
South Ribble Borough Council,http://statistics.data.gov.uk/id/local-authority/30UE,Central Support Services,Salaries,1121,Planning consultant to deal with Planning applications for the next 6 months,10/11/2021,0000472892,"5,397.95",Revenue,CAPITA PROPERTY AND INFRASTRUCTURE LTD,0
South Ribble Borough Council,http://statistics.data.gov.uk/id/local-authority/30UE,Economic Development,Grants & Subscriptions,4730,grant,10/11/2021,0000472873,"5,000.00",Revenue,Central Lancashire Dial A Ride,0
South Ribble Borough Council,http://statistics.data.gov.uk/id/local-authority/30UE,Central Support Services,Premises Repair & Mtne,2020,To Supply and Fit GSM unit to generator as per NAME REDACTED request and ref no 657977,03/11/2021,0000472862,"1,427.50",Revenue,Central Power Services ltd,0
South Ribble Borough Council,http://statistics.data.gov.uk/id/local-authority/30UE,Homelessness,Contractors Chges,5311,NAME REDACTED - Cotswold Placement,03/11/2021,0000472681,"2,801.00",Revenue,CHORLEY BOROUGH COUNCIL,0
South Ribble Borough Council,http://statistics.data.gov.uk/id/local-authority/30UE,Capital,Capital Other Land & Bldgs,C230,To supply 3 Zephyr Air Quality monitors and solar panels along with a 36 month subscription per NAME REDACTED,03/11/2021,0000472861,"21,000.00",Revenue,CHORLEY BOROUGH COUNCIL,0
South Ribble Borough Council,http://statistics.data.gov.uk/id/local-authority/30UE,Central Support Services,Communications & Comuting,4247,"Re-charge, SRBC 50% share of three year Goss Interactive Ltd CMS Package 1st Oct 2020 to 30th Sept 2023 therefore 18 months.",12/11/2021,0000473246,"35,710.00",Revenue,CHORLEY BOROUGH COUNCIL,0
South Ribble Borough Council,http://statistics.data.gov.uk/id/local-authority/30UE,Central Support Services,Communications & Comuting,4247,"Re-charge Boundless Networks Ltd Broadband: Setup & Installation, Service Charge (Up to 50Mbps Download, Up to 20Mbps Upload).",12/11/2021,0000473247,"1,106.35",Revenue,CHORLEY BOROUGH COUNCIL,0
South Ribble Borough Council,http://statistics.data.gov.uk/id/local-authority/30UE,Central Support Services,Services,4541,Re-Charge Hybrit - 10 days consultancy,12/11/2021,0000473248,"3,250.00",Revenue,CHORLEY BOROUGH COUNCIL,0
South Ribble Borough Council,http://statistics.data.gov.uk/id/local-authority/30UE,Central Support Services,Communications & Comuting,4247,"Re-charge, Insight Direct (UK) LTD Office 365 professional services to support delivery of phase two of shared services. Contract via Chest.",17/11/2021,0000473249,"11,150.00",Revenue,CHORLEY BOROUGH COUNCIL,0
South Ribble Borough Council,http://statistics.data.gov.uk/id/local-authority/30UE,Central Support Services,Communications & Comuting,4247,"Re-charge Wave, SRBC - Leyland Leisure Centre, Immediate Connection provided by:  Commercial 4G router and E Sim",12/11/2021,0000473250,"3,743.00",Revenue,CHORLEY BOROUGH COUNCIL,0
South Ribble Borough Council,http://statistics.data.gov.uk/id/local-authority/30UE,Central Support Services,Services,4541,"Re-charge Hybrit LLP, 8 x Additional days for configuration of android policies for South Ribble to ensure security of devices.",17/11/2021,0000473251,"5,200.00",Revenue,CHORLEY BOROUGH COUNCIL,0
South Ribble Borough Council,http://statistics.data.gov.uk/id/local-authority/30UE,Central Support Services,Furniture- Equip & Materials,4040,1 x ad blu injector PO70YOG JFC17470,03/11/2021,0000473100,"1,220.26",Revenue,CICELEY COMMERCIALS LTD,0
South Ribble Borough Council,http://statistics.data.gov.uk/id/local-authority/30UE,Central Support Services,Training Expenses,1402,CIPFA Summer Internal Audit Update 4 x delegates @ 195,24/11/2021,0000472295,640.00,Revenue,CIPFA BUSINESS LTD,0
South Ribble Borough Council,http://statistics.data.gov.uk/id/local-authority/30UE,Regulatory Services,Furniture- Equip & Materials,4010,Traceable recalibration of: 1.000 RCALCK199B Trojan Noise Nuisance Recorder as per NAME REDACTED,03/11/2021,0000472696,413.00,Revenue,CIRRUS RESEARCH PLC,0
South Ribble Borough Council,http://statistics.data.gov.uk/id/local-authority/30UE,General Grants Bequests & Dona,Grants & Subscriptions,4730,Grant for the provision of advice services as per Grant Agreement,24/11/2021,0000473369,"25,000.00",Revenue,Citizens Advice Lancashire,0
South Ribble Borough Council,http://statistics.data.gov.uk/id/local-authority/30UE,Central Support Services,Communications & Comuting,4243,"for HSG - Abritas, Additional Annual charge to South Ribble for exceeding your Data Storage & Recovery quota.",24/11/2021,0000473488,"2,361.15",Revenue,CIVICA UK LTD,0
South Ribble Borough Council,http://statistics.data.gov.uk/id/local-authority/30UE,Homelessness,Contractors Chges,5311,"Accommodation costs, NAME REDACTED 7 nights, NAME REDACTED final 13 nights",10/11/2021,0000473122,900.00,Revenue,CLAREMONT HOTEL,0
South Ribble Borough Council,http://statistics.data.gov.uk/id/local-authority/30UE,Capital,Capital Other Land & Bldgs,C230,Construction of new football pitch and carpark @ Lostockhall st Gerards fc as per NAME REDACTED to pay invoice 40258 dated 14th October,03/11/2021,0000472647,897.00,Revenue,Cleveland Land Services (Guisborough) Limited,0
South Ribble Borough Council,http://statistics.data.gov.uk/id/local-authority/30UE,Recreation & Sport,Premises Repair & Mtne,2020,cool air pump 275.00,17/11/2021,0000472170,275.00,Revenue,Coolair Services Limited,0
South Ribble Borough Council,http://statistics.data.gov.uk/id/local-authority/30UE,Recreation & Sport,Energy Costs,2304,aug-sept21,03/11/2021,0000472749,"2,888.31",Revenue,Corona Energy Retail 4 Limited,0
South Ribble Borough Council,http://statistics.data.gov.uk/id/local-authority/30UE,Recreation & Sport,Energy Costs,2304,sept-oct21,03/11/2021,0000472750,420.67,Revenue,Corona Energy Retail 4 Limited,0
South Ribble Borough Council,http://statistics.data.gov.uk/id/local-authority/30UE,Recreation & Sport,Energy Costs,2304,sept-oct21,03/11/2021,0000472752,"2,814.87",Revenue,Corona Energy Retail 4 Limited,0
South Ribble Borough Council,http://statistics.data.gov.uk/id/local-authority/30UE,Recreation & Sport,Energy Costs,2304,sept-oct21,03/11/2021,0000472754,"2,752.39",Revenue,Corona Energy Retail 4 Limited,0
South Ribble Borough Council,http://statistics.data.gov.uk/id/local-authority/30UE,Local Tax Collection,Communications & Comuting,4291,Postage April - October 2021,03/11/2021,0000472872,404.78,Revenue,CRITIQOM,0
South Ribble Borough Council,http://statistics.data.gov.uk/id/local-authority/30UE,Local Tax Collection,Communications & Comuting,4291,Postage April - October 2021,10/11/2021,0000473074,311.06,Revenue,CRITIQOM,0
South Ribble Borough Council,http://statistics.data.gov.uk/id/local-authority/30UE,Local Tax Collection,Communications & Comuting,4291,Postage April - October 2021,10/11/2021,0000473159,809.75,Revenue,CRITIQOM,0
South Ribble Borough Council,http://statistics.data.gov.uk/id/local-authority/30UE,Economic Development,Services,4510,Mailing of the South Ribble residents survey 2021,12/11/2021,0000473183,473.43,Revenue,CRITIQOM,0
South Ribble Borough Council,http://statistics.data.gov.uk/id/local-authority/30UE,Economic Development,Services,4510,Mailing of the South Ribble residents survey 2021,12/11/2021,0000473211,"1,216.50",Revenue,CRITIQOM,0
South Ribble Borough Council,http://statistics.data.gov.uk/id/local-authority/30UE,Local Tax Collection,Communications & Comuting,4291,Postage November to March 2022,24/11/2021,0000473304,"1,307.04",Revenue,CRITIQOM,0
South Ribble Borough Council,http://statistics.data.gov.uk/id/local-authority/30UE,Economic Development,Services,4510,Mailing of the South Ribble residents survey 2021,24/11/2021,0000473318,463.92,Revenue,CRITIQOM,0
South Ribble Borough Council,http://statistics.data.gov.uk/id/local-authority/30UE,Capital,Capital Other Land & Bldgs,C230,Consultation drop in event Extra Care (West Paddock) - leaflet drop/postage,24/11/2021,0000473350,"1,371.78",Revenue,CRITIQOM,0
South Ribble Borough Council,http://statistics.data.gov.uk/id/local-authority/30UE,Economic Development,Services,4510,Mailing of the South Ribble residents survey 2021,24/11/2021,0000473374,"1,148.54",Revenue,CRITIQOM,0
South Ribble Borough Council,http://statistics.data.gov.uk/id/local-authority/30UE,Recreation & Sport,Premises Repair & Mtne,2035,"2021 / 2022 annual contract, for service visit for Leisure Centre alarm located at Leyland and Penwortham Leisure Centres as per your ref 33462/2",03/11/2021,0000472314,487.50,Revenue,customDesign Technologies Ltd (MDH Wireless),0
South Ribble Borough Council,http://statistics.data.gov.uk/id/local-authority/30UE,Recreation & Sport,Premises Repair & Mtne,2035,"2021 / 2022 annual contract, for service visit for Leisure Centre alarm located at Leyland and Penwortham Leisure Centres as per your ref 33462/2",03/11/2021,0000472314,487.50,Revenue,customDesign Technologies Ltd (MDH Wireless),0
South Ribble Borough Council,http://statistics.data.gov.uk/id/local-authority/30UE,Short Term Debtors,Balance Sheet,0030,CYCLESCHEME PACKAGE FOR NAME REDACTED,12/11/2021,0000473239,708.33,Revenue,CYCLESCHEME CO  UK,0
South Ribble Borough Council,http://statistics.data.gov.uk/id/local-authority/30UE,Short Term Debtors,Balance Sheet,0030,CYCLESCHEME PACKAGE FOR NAME REDACTED,12/11/2021,0000473257,"2,283.28",Revenue,CYCLESCHEME CO  UK,0
South Ribble Borough Council,http://statistics.data.gov.uk/id/local-authority/30UE,Central Support Services,Services,4570,1 x spec repair PF15HYU JFC17397,10/11/2021,0000473147,837.16,Revenue,DAVAND LTD (trading as Longton Coachcraft),0
South Ribble Borough Council,http://statistics.data.gov.uk/id/local-authority/30UE,Central Support Services,Furniture- Equip & Materials,4040,1 x window regulator and motor VU58JXK JFC17475,10/11/2021,0000473019,284.73,Revenue,DENNIS EAGLE LTD,0
South Ribble Borough Council,http://statistics.data.gov.uk/id/local-authority/30UE,Central Support Services,Furniture- Equip & Materials,4040,"1 fan belt, 1 idler pulley, 2 bump stops, 2 ARB bushes, 1 Diff pressure sensor, 1 filter kit VO65 KPZ JFC17456",10/11/2021,0000473020,716.35,Revenue,DENNIS EAGLE LTD,0
South Ribble Borough Council,http://statistics.data.gov.uk/id/local-authority/30UE,Central Support Services,Furniture- Equip & Materials,4040,"NSF Bumper, Headlight Bezel, NS Headilght, NS beam kit, NS and OS corner bumper, 15 rivets, Mounting bracket. VA19KOX JFC17488",17/11/2021,0000473119,563.64,Revenue,DENNIS EAGLE LTD,0
South Ribble Borough Council,http://statistics.data.gov.uk/id/local-authority/30UE,Corporate Management,Miscellaneous Expenses,485R,supp grant jan 2021,12/11/2021,0000472983,"715,950.00",Revenue,Dept for Business Energy & Ind. Strategy (BEIS),0
South Ribble Borough Council,http://statistics.data.gov.uk/id/local-authority/30UE,Corporate Management,Miscellaneous Expenses,485R,closed business lockdown payment,12/11/2021,0000472984,"2,698,283.29",Revenue,Dept for Business Energy & Ind. Strategy (BEIS),0
South Ribble Borough Council,http://statistics.data.gov.uk/id/local-authority/30UE,Recreation & Sport,Premises Repair & Mtne,2021,"Trend Hardware, 1 No. Trend IQ251, 1 No. Trend IQ220, 1 No. Trend 131+, service contract with DDE for Leyland Leisure Centre",10/11/2021,0000472989,"1,430.00",Revenue,Detail Design Engineering Ltd,0
South Ribble Borough Council,http://statistics.data.gov.uk/id/local-authority/30UE,Recreation & Sport,Premises Repair & Mtne,2021,"Trend Hardware, 2 No. Trend IQ251, 1 No. Trend IQ131+, service contract for Bamber Bridge Leisure Centre with DDE",10/11/2021,0000473044,"1,870.00",Revenue,Detail Design Engineering Ltd,0
South Ribble Borough Council,http://statistics.data.gov.uk/id/local-authority/30UE,Recreation & Sport,Premises Repair & Mtne,2021,"Penwortham Leisure Centre, Trend Hardware, 1 No. Trend IQ251, service contract with DDE for penwortham leisure centre",10/11/2021,0000473178,"1,430.00",Revenue,Detail Design Engineering Ltd,0
South Ribble Borough Council,http://statistics.data.gov.uk/id/local-authority/30UE,Open Spaces,"Clothes,uniform & laundry",4410,1x TSPFA185/L Pfanner Arb C Long Leg Grey 38'' Wasit,10/11/2021,0000473001,285.00,Revenue,DICK LEIGH,0
South Ribble Borough Council,http://statistics.data.gov.uk/id/local-authority/30UE,Central Support Services,Furniture- Equip & Materials,4010,CHAINSAW CHAIN FOR 026 SAW 325/62E ST36390030062,24/11/2021,0000473395,64.90,Revenue,DICK LEIGH,0
South Ribble Borough Council,http://statistics.data.gov.uk/id/local-authority/30UE,Central Support Services,Furniture- Equip & Materials,4010,CHAINSAW CHAIN 16'' ST36390030067,24/11/2021,0000473395,90.05,Revenue,DICK LEIGH,0
South Ribble Borough Council,http://statistics.data.gov.uk/id/local-authority/30UE,Central Support Services,Furniture- Equip & Materials,4010,1004216 - CHAINSAW CHAIN 36'' ST36210000114,24/11/2021,0000473395,89.33,Revenue,DICK LEIGH,0
South Ribble Borough Council,http://statistics.data.gov.uk/id/local-authority/30UE,Central Support Services,Furniture- Equip & Materials,4040,STIHL CHAINSAW LUBRICANT MIC025,24/11/2021,0000473395,60.00,Revenue,DICK LEIGH,0
South Ribble Borough Council,http://statistics.data.gov.uk/id/local-authority/30UE,Capital,Capital Other Land & Bldgs,C230,"Rental of Temp Caf� unit for �Folly caf� Worden park. Unit will be supplied, installed and removed upon termination. Per calendar month.",03/11/2021,0000472881,"2,060.00",Revenue,DP STRUCTURES LTD,0
South Ribble Borough Council,http://statistics.data.gov.uk/id/local-authority/30UE,Central Support Services,Communications & Comuting,4260,01 sept 21,03/11/2021,0000471739,"4,258.97",Revenue,EE Ltd,0
South Ribble Borough Council,http://statistics.data.gov.uk/id/local-authority/30UE,Waste Collection,Services,4570,Residual Waste Collections- October 2021,12/11/2021,0000473175,"47,367.71",Revenue,FCC Environment Services (UK) Ltd,0
South Ribble Borough Council,http://statistics.data.gov.uk/id/local-authority/30UE,Recycling,Services,4570,Dry recyclable non terrace- October 2021,12/11/2021,0000473175,"48,490.57",Revenue,FCC Environment Services (UK) Ltd,0
South Ribble Borough Council,http://statistics.data.gov.uk/id/local-authority/30UE,Recycling,Services,4570,Dry recyclable terraced.- October 2021,12/11/2021,0000473175,"2,308.24",Revenue,FCC Environment Services (UK) Ltd,0
South Ribble Borough Council,http://statistics.data.gov.uk/id/local-authority/30UE,Recycling,Services,4570,Organic waste - non terraced- October 2021,12/11/2021,0000473175,"33,573.08",Revenue,FCC Environment Services (UK) Ltd,0
South Ribble Borough Council,http://statistics.data.gov.uk/id/local-authority/30UE,Trade Waste,Services,4570,Schedule 2 Properties- October 2021,12/11/2021,0000473175,"1,931.17",Revenue,FCC Environment Services (UK) Ltd,0
South Ribble Borough Council,http://statistics.data.gov.uk/id/local-authority/30UE,Trade Waste,Services,4570,Commercial Waste collections-  October 2021,12/11/2021,0000473175,"7,517.16",Revenue,FCC Environment Services (UK) Ltd,0
South Ribble Borough Council,http://statistics.data.gov.uk/id/local-authority/30UE,Waste Collection,Services,4570,Bulky Waste Collections- October 2021,12/11/2021,0000473175,"1,043.40",Revenue,FCC Environment Services (UK) Ltd,0
South Ribble Borough Council,http://statistics.data.gov.uk/id/local-authority/30UE,Waste Collection,Services,4570,WEEE collections - October 2021,12/11/2021,0000473175,392.02,Revenue,FCC Environment Services (UK) Ltd,0
South Ribble Borough Council,http://statistics.data.gov.uk/id/local-authority/30UE,Waste Collection,Services,4570,Clinical Waste Collections- October 2021,12/11/2021,0000473175,667.86,Revenue,FCC Environment Services (UK) Ltd,0
South Ribble Borough Council,http://statistics.data.gov.uk/id/local-authority/30UE,Waste Collection,Services,4570,Replacement Bins- October 2021,12/11/2021,0000473175,"5,000.00",Revenue,FCC Environment Services (UK) Ltd,0
South Ribble Borough Council,http://statistics.data.gov.uk/id/local-authority/30UE,Waste Collection,Services,4570,Additional Properties- October 2021,12/11/2021,0000473175,"5,408.15",Revenue,FCC Environment Services (UK) Ltd,0
South Ribble Borough Council,http://statistics.data.gov.uk/id/local-authority/30UE,Short Term Creditors,Balance Sheet,0030,ret recycling,12/11/2021,0000473175,"-3,216.37",Revenue,FCC Environment Services (UK) Ltd,0
South Ribble Borough Council,http://statistics.data.gov.uk/id/local-authority/30UE,Short Term Creditors,Balance Sheet,0030,ret refuse,12/11/2021,0000473175,"-4,218.59",Revenue,FCC Environment Services (UK) Ltd,0
South Ribble Borough Council,http://statistics.data.gov.uk/id/local-authority/30UE,Waste Collection,Services,4570,Additional Bulky Waste Collections - October 2021,17/11/2021,0000473177,"1,134.00",Revenue,FCC Environment Services (UK) Ltd,0
South Ribble Borough Council,http://statistics.data.gov.uk/id/local-authority/30UE,Waste Collection,Services,4570,Additional WEEE collections- October 2021,17/11/2021,0000473177,861.36,Revenue,FCC Environment Services (UK) Ltd,0
South Ribble Borough Council,http://statistics.data.gov.uk/id/local-authority/30UE,Short Term Creditors,Balance Sheet,0030,retention,17/11/2021,0000473177,-99.80,Revenue,FCC Environment Services (UK) Ltd,0
South Ribble Borough Council,http://statistics.data.gov.uk/id/local-authority/30UE,Waste Collection,Services,4570,Additional Waste Collections- October 2021,17/11/2021,0000473236,551.76,Revenue,FCC Environment Services (UK) Ltd,0
South Ribble Borough Council,http://statistics.data.gov.uk/id/local-authority/30UE,Short Term Creditors,Balance Sheet,0030,retention fee,17/11/2021,0000473236,-29.04,Revenue,FCC Environment Services (UK) Ltd,0
South Ribble Borough Council,http://statistics.data.gov.uk/id/local-authority/30UE,Open Spaces,Services,4570,"2mx3m Platform, Rough surfaced Decking Board x15, bearers x9, cross bearers x3, Pointed Post x2, Pointed Post x2, Pointed Post x2",24/11/2021,0000472851,"1,890.00",Revenue,FILCRIS LTD,0
South Ribble Borough Council,http://statistics.data.gov.uk/id/local-authority/30UE,Open Spaces,Services,4570,delivery,24/11/2021,0000472851,135.00,Revenue,FILCRIS LTD,0
South Ribble Borough Council,http://statistics.data.gov.uk/id/local-authority/30UE,Central Support Services,Miscellaneous Expenses,4821,PROFESSIONAL ADVICE IN RESPECT OF THE LIME BAR - PLANNING/LICENSING ISSUES,24/11/2021,0000473486,810.00,Revenue,Freddie Humphreys,0
South Ribble Borough Council,http://statistics.data.gov.uk/id/local-authority/30UE,Service Management & Support,Direct Transport Costs,3131,Fuel W/C 25.10.21,03/11/2021,0000473092,232.23,Revenue,Fuel Card Services,0
South Ribble Borough Council,http://statistics.data.gov.uk/id/local-authority/30UE,Service Management & Support,Direct Transport Costs,3132,Diesel purchased at Booths Penwortham (due to depot pump being out of action).,03/11/2021,0000473092,"5,232.89",Revenue,Fuel Card Services,0
South Ribble Borough Council,http://statistics.data.gov.uk/id/local-authority/30UE,Service Management & Support,Direct Transport Costs,3131,Fuel W/C 08.11.21,24/11/2021,0000473485,343.80,Revenue,Fuel Card Services,0
South Ribble Borough Council,http://statistics.data.gov.uk/id/local-authority/30UE,Capital,Capital Other Land & Bldgs,C230,Please undertake over cladding & insulation works to the roof of unit ADDRESS REDACTED as detailed in your quotation,17/11/2021,0000473118,"4,624.00",Revenue,Gables Uk Ltd,0
South Ribble Borough Council,http://statistics.data.gov.uk/id/local-authority/30UE,Democratic Represent and  Mgnt,Expenses,463A,"6m Heavy duty commercial glassfibre flagpole, Tapering from 120mm-65mm complete with hinged base, ground rods, internal roping system",10/11/2021,0000473045,765.02,Revenue,GLASSFIBRE FLAGPOLES LTD,0
South Ribble Borough Council,http://statistics.data.gov.uk/id/local-authority/30UE,Capital,Capital Other Land & Bldgs,C230,Leyland Town Deal - Document Management Services,24/11/2021,0000473474,525.00,Revenue,Gosling Consulting Limited,0
South Ribble Borough Council,http://statistics.data.gov.uk/id/local-authority/30UE,Capital,Capital Other Land & Bldgs,C230,IRS procurement support - Leyland Town Deal,24/11/2021,0000473475,"1,657.50",Revenue,Gosling Consulting Limited,0
South Ribble Borough Council,http://statistics.data.gov.uk/id/local-authority/30UE,Capital,Capital Other Land & Bldgs,C230,"Provision of Quantity Surveyor Services, Procurement Support Services to RIBA Stage 3 / Leyland Town Deal Project as per NAME REDACTED",24/11/2021,0000473477,"4,977.00",Revenue,Gosling Consulting Limited,0
South Ribble Borough Council,http://statistics.data.gov.uk/id/local-authority/30UE,Recreation & Sport,Miscellaneous Expenses,4842,GOSS WEBSITE TRAINING,24/11/2021,0000472354,"1,500.00",Revenue,Goss Interactive Limited,0
South Ribble Borough Council,http://statistics.data.gov.uk/id/local-authority/30UE,Democratic Represent and  Mgnt,Training Expenses,1406,GOVERNANCE RISK AND CONTROL EVALUATION (NAME REDACTED) SOFTWARE RISK MANAGEMENT TRAINING 23 SEPTEMBER 2021,10/11/2021,0000473162,700.00,Revenue,Grace Governance Solutions Ltd,0
South Ribble Borough Council,http://statistics.data.gov.uk/id/local-authority/30UE,Capital,Capital Other Land & Bldgs,C230,(Stages 4-7) for the delivery of the Worden Hall refurbishment as per tender as per NAME REDACTED,24/11/2021,0000473200,"1,500.00",Revenue,GRAHAM SCHOFIELD ASSOCIATES,0
South Ribble Borough Council,http://statistics.data.gov.uk/id/local-authority/30UE,Central Support Services,Premises Repair & Mtne,2020,"Undertake a structural roof loading survey. Assist with proposed solar works. Site visit, visual inspection, measured survey, Structural analysis",17/11/2021,0000473209,700.00,Revenue,GRAHAM SCHOFIELD ASSOCIATES,0
South Ribble Borough Council,http://statistics.data.gov.uk/id/local-authority/30UE,Open Spaces,Expenses,4657,"1x Wheel Assembly - 251.22, 4x Spring Assembly @ 266.76 each - 1067.04, 4x Shock Absorber Assembly @ 191.47 each - 765.88",24/11/2021,0000472993,"1,899.00",Revenue,HAGS SMP LTD,0
South Ribble Borough Council,http://statistics.data.gov.uk/id/local-authority/30UE,Short Term Creditors,Balance Sheet,0140,,17/11/2021,0000472337,820.00,Revenue,HM REVENUE & CUSTOMS,0
South Ribble Borough Council,http://statistics.data.gov.uk/id/local-authority/30UE,Recreation & Sport,Furniture- Equip & Materials,4013,"Replace Corroded DHW Return Pipe Work In Plant Room, Run new DHW pipe work away from wall at high level, Isolate BCW & DHW supplies",03/11/2021,0000472847,"1,154.42",Revenue,Hodgkinson Bennis Limited,0
South Ribble Borough Council,http://statistics.data.gov.uk/id/local-authority/30UE,Homelessness,Grants & Subscriptions,4730,Housing Quality Network - Working Effectively with Hoarders public training course 7.12.2021,24/11/2021,0000473439,275.00,Revenue,HOUSING QUALITY NETWORK,0
South Ribble Borough Council,http://statistics.data.gov.uk/id/local-authority/30UE,Open Spaces,Expenses,4657,"x1 hammock and x2 universal joints with swivel as detailed. Steel Link Rope Hammock, Universal Joints with Swivel",24/11/2021,0000472935,"1,142.00",Revenue,HUCKNETS (UK) LTD,0
South Ribble Borough Council,http://statistics.data.gov.uk/id/local-authority/30UE,Community Development,Miscellaneous Expenses,4842,9th November - SRBC Tennis Centre Fun Morning photography with images sent electronically to SRBC,24/11/2021,0000473461,300.00,Revenue,IAN ROBINSON,0
South Ribble Borough Council,http://statistics.data.gov.uk/id/local-authority/30UE,Central Support Services,Communications & Comuting,4246,"Professional services: Re-book test data load, Project management to re-baseline the plan and arrange for new bookings and schedule 950.00",12/11/2021,0000473252,"3,800.00",Revenue,IDOX PLC,0
South Ribble Borough Council,http://statistics.data.gov.uk/id/local-authority/30UE,Central Support Services,Furniture- Equip & Materials,4040,112 bags (2 pallets) of QC10 - QUICK SET CONCRETE,24/11/2021,0000473382,"1,277.92",Revenue,INSTARMAC GROUP PLC,0
South Ribble Borough Council,http://statistics.data.gov.uk/id/local-authority/30UE,Capital,Capital Other Land & Bldgs,C230,"Architects fees for stages 5&6 Hurst Grange Coach House, Penwortham",17/11/2021,0000473002,740.50,Revenue,Ivan Wilson Architect,0
South Ribble Borough Council,http://statistics.data.gov.uk/id/local-authority/30UE,Economic Development,Premises Repair & Mtne,2020,To undertake compartmentation works at Leyland Market as detailed in you quotation ref JFN3782NS,03/11/2021,0000472846,280.00,Revenue,JFN Integrated Solutions Ltd,0
South Ribble Borough Council,http://statistics.data.gov.uk/id/local-authority/30UE,Economic Development,Premises Repair & Mtne,2020,cert,03/11/2021,0000472846,200.00,Revenue,JFN Integrated Solutions Ltd,0
South Ribble Borough Council,http://statistics.data.gov.uk/id/local-authority/30UE,Economic Development,Premises Repair & Mtne,2020,MATERIALS,03/11/2021,0000472846,96.94,Revenue,JFN Integrated Solutions Ltd,0
South Ribble Borough Council,http://statistics.data.gov.uk/id/local-authority/30UE,Capital,Capital Other Land & Bldgs,C230,"Fire safety - Civic, Depot, Kingsfold This order is linked to the urgent decision waiver which was granted to bring all 3 sites into compliance.",17/11/2021,0000473036,"8,997.15",Revenue,JFN Integrated Solutions Ltd,0
South Ribble Borough Council,http://statistics.data.gov.uk/id/local-authority/30UE,Capital,Capital Other Land & Bldgs,C230,"Fire safety - Civic, Depot, Kingsfold This order is linked to the urgent decision waiver which was granted to bring all 3 sites into compliance.",17/11/2021,0000473037,"8,597.42",Revenue,JFN Integrated Solutions Ltd,0
South Ribble Borough Council,http://statistics.data.gov.uk/id/local-authority/30UE,Capital,Capital Other Land & Bldgs,C230,"Fire safety - Civic, Depot, Kingsfold This order is linked to the urgent decision waiver which was granted to bring all 3 sites into compliance.",17/11/2021,0000473110,"14,995.24",Revenue,JFN Integrated Solutions Ltd,0
South Ribble Borough Council,http://statistics.data.gov.uk/id/local-authority/30UE,Open Spaces,Furniture- Equip & Materials,4040,"4 x 4x4 posts, 31 x 4x1.5 rails, 5 x 6x4 posts",24/11/2021,0000473287,269.78,Revenue,JOHN HY MAYOR & SONS LTD,0
South Ribble Borough Council,http://statistics.data.gov.uk/id/local-authority/30UE,Capital,Capital Other Land & Bldgs,C230,"For the creation of 2M wide bridleway, Leyland as agreed with SRBC regeneration department",03/11/2021,0000472974,"61,144.20",Revenue,John Wade Groundworks Ltd t/a Wade Group,0
South Ribble Borough Council,http://statistics.data.gov.uk/id/local-authority/30UE,Community Development,Miscellaneous Expenses,4861,"Lostock Memorial Wall, Works location � Brownedge Road Memorial, Lostock Hall, Preston as per NAME REDACTED",24/11/2021,0000473435,"2,852.70",Revenue,John Wade Groundworks Ltd t/a Wade Group,0
South Ribble Borough Council,http://statistics.data.gov.uk/id/local-authority/30UE,Recreation & Sport,Furniture- Equip & Materials,4010,SE742 MD100 Lovibond 3 in 1 photometer kit,10/11/2021,0000472977,339.07,Revenue,JP LENNARD LTD,0
South Ribble Borough Council,http://statistics.data.gov.uk/id/local-authority/30UE,Recreation & Sport,Furniture- Equip & Materials,4010,Carriage,10/11/2021,0000472977,14.35,Revenue,JP LENNARD LTD,0
South Ribble Borough Council,http://statistics.data.gov.uk/id/local-authority/30UE,Development Control,Miscellaneous Expenses,4841,Purchase order - for public notices for planning applications appearing in the LEP,24/11/2021,0000473361,810.00,Revenue,JPI Media - JOHNSTON PUBLISHING (NORTH WEST),0
South Ribble Borough Council,http://statistics.data.gov.uk/id/local-authority/30UE,Open Spaces,Expenses,4657,Hire of 1 1/2 tonne excavator & trailer for 1 week from 08/11/2021,24/11/2021,0000473402,287.20,Revenue,K H HIRE SERVICES,0
South Ribble Borough Council,http://statistics.data.gov.uk/id/local-authority/30UE,Street Cleansing,Services,4570,"Traffic management for Autumn by-pass cleaning for the following dates, 11th - 15th October - 5 nights, 18th - 20th October - 3 days",24/11/2021,0000473373,"5,800.00",Revenue,KAYS TRAFFIC MANAGEMENT LTD,0
South Ribble Borough Council,http://statistics.data.gov.uk/id/local-authority/30UE,Homelessness,Grants & Subscriptions,4730,Q3 October to December 2021 Key drop in,17/11/2021,0000473408,"7,500.00",Revenue,KEY UNLOCKING FUTURES LTD,0
South Ribble Borough Council,http://statistics.data.gov.uk/id/local-authority/30UE,Regulatory Services,Furniture- Equip & Materials,4041,5 x CHAMELEON 1X2 WHITE CHA1X2014 @ 99.00,03/11/2021,0000472708,408.40,Revenue,KILLGERM CHEMICALS LTD,0
South Ribble Borough Council,http://statistics.data.gov.uk/id/local-authority/30UE,Regulatory Services,Furniture- Equip & Materials,4041,5 X FREE STANDING BRACKET EF305STAND @ 8.00,03/11/2021,0000472708,33.00,Revenue,KILLGERM CHEMICALS LTD,0
South Ribble Borough Council,http://statistics.data.gov.uk/id/local-authority/30UE,Regulatory Services,Furniture- Equip & Materials,4041,ELECTRICAL UNIT RECYCLING CHARGE (5 X 0.39),03/11/2021,0000472708,1.95,Revenue,KILLGERM CHEMICALS LTD,0
South Ribble Borough Council,http://statistics.data.gov.uk/id/local-authority/30UE,Surplus or Deficit on Trading,Premises Repair & Mtne,2021,2021 / 2022 contract for water hygiene monitoring at Gregson Lane Pavilion,17/11/2021,0000473169,46.25,Revenue,KNOWSLEY BLD & ENVIRONMENTAL SERVICES LT,0
South Ribble Borough Council,http://statistics.data.gov.uk/id/local-authority/30UE,Surplus or Deficit on Trading,Premises Repair & Mtne,2021,2021 / 2022 contract for water hygiene monitoring at Hern Avenue Pavilion,17/11/2021,0000473169,46.25,Revenue,KNOWSLEY BLD & ENVIRONMENTAL SERVICES LT,0
South Ribble Borough Council,http://statistics.data.gov.uk/id/local-authority/30UE,Surplus or Deficit on Trading,Premises Repair & Mtne,2021,2021 / 2022 contract for water hygiene monitoring at Higher Walton Pavilion,17/11/2021,0000473169,46.25,Revenue,KNOWSLEY BLD & ENVIRONMENTAL SERVICES LT,0
South Ribble Borough Council,http://statistics.data.gov.uk/id/local-authority/30UE,Surplus or Deficit on Trading,Premises Repair & Mtne,2021,2021 / 2022 contract for water hygiene monitoring at Holme Pavilion,17/11/2021,0000473169,46.25,Revenue,KNOWSLEY BLD & ENVIRONMENTAL SERVICES LT,0
South Ribble Borough Council,http://statistics.data.gov.uk/id/local-authority/30UE,Surplus or Deficit on Trading,Premises Repair & Mtne,2021,2021 / 2022 contract for water hygiene monitoring at Hutton Pavilion,17/11/2021,0000473169,46.25,Revenue,KNOWSLEY BLD & ENVIRONMENTAL SERVICES LT,0
South Ribble Borough Council,http://statistics.data.gov.uk/id/local-authority/30UE,Surplus or Deficit on Trading,Premises Repair & Mtne,2021,2021 / 2022 contract for water hygiene monitoring at Kingsfold pavilion,17/11/2021,0000473169,54.00,Revenue,KNOWSLEY BLD & ENVIRONMENTAL SERVICES LT,0
South Ribble Borough Council,http://statistics.data.gov.uk/id/local-authority/30UE,Surplus or Deficit on Trading,Premises Repair & Mtne,2021,2021 / 2022 contract for water hygiene monitoring at sports pavilions Worden Park (formerly long pavilion),17/11/2021,0000473169,46.25,Revenue,KNOWSLEY BLD & ENVIRONMENTAL SERVICES LT,0
South Ribble Borough Council,http://statistics.data.gov.uk/id/local-authority/30UE,Surplus or Deficit on Trading,Premises Repair & Mtne,2021,2021 / 2022 contract for water hygiene monitoring at Moss Side Pavilion,17/11/2021,0000473169,54.00,Revenue,KNOWSLEY BLD & ENVIRONMENTAL SERVICES LT,0
South Ribble Borough Council,http://statistics.data.gov.uk/id/local-authority/30UE,Surplus or Deficit on Trading,Premises Repair & Mtne,2021,2021 / 2022 contract for water hygiene monitoring at Much Hoole Pavilion,17/11/2021,0000473169,46.25,Revenue,KNOWSLEY BLD & ENVIRONMENTAL SERVICES LT,0
South Ribble Borough Council,http://statistics.data.gov.uk/id/local-authority/30UE,Surplus or Deficit on Trading,Premises Repair & Mtne,2021,2021 / 2022 contract for water hygiene monitoring at Penwortham Holme,17/11/2021,0000473169,46.25,Revenue,KNOWSLEY BLD & ENVIRONMENTAL SERVICES LT,0
South Ribble Borough Council,http://statistics.data.gov.uk/id/local-authority/30UE,Surplus or Deficit on Trading,Premises Repair & Mtne,2021,2021 / 2022 contract for water hygiene monitoring at St Cuthbert`s Pavilion,17/11/2021,0000473169,46.25,Revenue,KNOWSLEY BLD & ENVIRONMENTAL SERVICES LT,0
South Ribble Borough Council,http://statistics.data.gov.uk/id/local-authority/30UE,Surplus or Deficit on Trading,Premises Repair & Mtne,2021,2021 / 2022 contract for water hygiene monitoring at Withy Grove Pavilion,17/11/2021,0000473169,54.00,Revenue,KNOWSLEY BLD & ENVIRONMENTAL SERVICES LT,0
South Ribble Borough Council,http://statistics.data.gov.uk/id/local-authority/30UE,Surplus or Deficit on Trading,Premises Repair & Mtne,2021,2021 / 2022 contract for water hygiene monitoring at Holland House Farm Pavilion,17/11/2021,0000473169,46.25,Revenue,KNOWSLEY BLD & ENVIRONMENTAL SERVICES LT,0
South Ribble Borough Council,http://statistics.data.gov.uk/id/local-authority/30UE,Surplus or Deficit on Trading,Premises Repair & Mtne,2021,"2021 / 2022 contract for water hygiene monitoring at The Derby Wing, Worden Park",17/11/2021,0000473169,43.75,Revenue,KNOWSLEY BLD & ENVIRONMENTAL SERVICES LT,0
South Ribble Borough Council,http://statistics.data.gov.uk/id/local-authority/30UE,Surplus or Deficit on Trading,Premises Repair & Mtne,2021,2021 / 2022 contract for water hygiene monitoring at Carr Street Community Centre,17/11/2021,0000473169,43.75,Revenue,KNOWSLEY BLD & ENVIRONMENTAL SERVICES LT,0
South Ribble Borough Council,http://statistics.data.gov.uk/id/local-authority/30UE,Surplus or Deficit on Trading,Premises Repair & Mtne,2021,2021 / 2022 contract for water hygiene monitoring at Higher Walton Community Centre,17/11/2021,0000473169,43.75,Revenue,KNOWSLEY BLD & ENVIRONMENTAL SERVICES LT,0
South Ribble Borough Council,http://statistics.data.gov.uk/id/local-authority/30UE,Surplus or Deficit on Trading,Premises Repair & Mtne,2021,2021 / 2022 contract for water hygiene monitoring at Moss Side Community Centre,17/11/2021,0000473169,43.75,Revenue,KNOWSLEY BLD & ENVIRONMENTAL SERVICES LT,0
South Ribble Borough Council,http://statistics.data.gov.uk/id/local-authority/30UE,Surplus or Deficit on Trading,Premises Repair & Mtne,2021,2021 / 2022 contract for water hygiene monitoring at Worden Arts & Craft Centre,17/11/2021,0000473169,59.25,Revenue,KNOWSLEY BLD & ENVIRONMENTAL SERVICES LT,0
South Ribble Borough Council,http://statistics.data.gov.uk/id/local-authority/30UE,Economic Development,Premises Repair & Mtne,2021,2021 / 2022 contract for water hygiene monitoring at Leyland Market,17/11/2021,0000473169,43.75,Revenue,KNOWSLEY BLD & ENVIRONMENTAL SERVICES LT,0
South Ribble Borough Council,http://statistics.data.gov.uk/id/local-authority/30UE,Surplus or Deficit on Trading,Premises Repair & Mtne,2021,2021 / 2022 contract for water hygiene monitoring at Hurst Grange Park,17/11/2021,0000473169,43.75,Revenue,KNOWSLEY BLD & ENVIRONMENTAL SERVICES LT,0
South Ribble Borough Council,http://statistics.data.gov.uk/id/local-authority/30UE,Surplus or Deficit on Trading,Premises Repair & Mtne,2021,"2021 / 2022 contract, 2 visits per year for water hygiene monitoring at Longton Brick Croft",17/11/2021,0000473169,52.50,Revenue,KNOWSLEY BLD & ENVIRONMENTAL SERVICES LT,0
South Ribble Borough Council,http://statistics.data.gov.uk/id/local-authority/30UE,Regulatory Services,Premises Repair & Mtne,2021,"2021 / 2022 contract, 2 visits per year for water hygiene monitoring at Playground toilets, Worden Park",17/11/2021,0000473169,52.50,Revenue,KNOWSLEY BLD & ENVIRONMENTAL SERVICES LT,0
South Ribble Borough Council,http://statistics.data.gov.uk/id/local-authority/30UE,Regulatory Services,Premises Repair & Mtne,2021,2021 / 2022 contract for water hygiene monitoring at Withy Grove public toilets,17/11/2021,0000473169,46.50,Revenue,KNOWSLEY BLD & ENVIRONMENTAL SERVICES LT,0
South Ribble Borough Council,http://statistics.data.gov.uk/id/local-authority/30UE,Central Support Services,Premises Repair & Mtne,2021,"2021 / 2022 contract, 12 visits per year for water hygiene monitoring at the Civic Centre, Leyland",17/11/2021,0000473169,185.75,Revenue,KNOWSLEY BLD & ENVIRONMENTAL SERVICES LT,0
South Ribble Borough Council,http://statistics.data.gov.uk/id/local-authority/30UE,Central Support Services,Premises Repair & Mtne,2021,2021 / 2022 contract for water hygiene monitoring at Moss Side Depot,17/11/2021,0000473169,112.75,Revenue,KNOWSLEY BLD & ENVIRONMENTAL SERVICES LT,0
South Ribble Borough Council,http://statistics.data.gov.uk/id/local-authority/30UE,Surplus or Deficit on Trading,Premises Repair & Mtne,2021,2021 / 2022 contract for water hygiene monitoring at Longton Pavilion,17/11/2021,0000473169,46.25,Revenue,KNOWSLEY BLD & ENVIRONMENTAL SERVICES LT,0
South Ribble Borough Council,http://statistics.data.gov.uk/id/local-authority/30UE,Central Support Services,Premises Repair & Mtne,2021,Additional 6 monthly sampling at Moss Side Depot,17/11/2021,0000473169,27.00,Revenue,KNOWSLEY BLD & ENVIRONMENTAL SERVICES LT,0
South Ribble Borough Council,http://statistics.data.gov.uk/id/local-authority/30UE,Surplus or Deficit on Trading,Premises Repair & Mtne,2021,2021 / 2022 contract for water hygiene monitoring at Gregson Lane Pavilion,17/11/2021,0000473201,46.25,Revenue,KNOWSLEY BLD & ENVIRONMENTAL SERVICES LT,0
South Ribble Borough Council,http://statistics.data.gov.uk/id/local-authority/30UE,Surplus or Deficit on Trading,Premises Repair & Mtne,2021,2021 / 2022 contract for water hygiene monitoring at Hern Avenue Pavilion,17/11/2021,0000473201,46.25,Revenue,KNOWSLEY BLD & ENVIRONMENTAL SERVICES LT,0
South Ribble Borough Council,http://statistics.data.gov.uk/id/local-authority/30UE,Surplus or Deficit on Trading,Premises Repair & Mtne,2021,2021 / 2022 contract for water hygiene monitoring at Higher Walton Pavilion,17/11/2021,0000473201,46.25,Revenue,KNOWSLEY BLD & ENVIRONMENTAL SERVICES LT,0
South Ribble Borough Council,http://statistics.data.gov.uk/id/local-authority/30UE,Surplus or Deficit on Trading,Premises Repair & Mtne,2021,2021 / 2022 contract for water hygiene monitoring at Holme Pavilion,17/11/2021,0000473201,46.25,Revenue,KNOWSLEY BLD & ENVIRONMENTAL SERVICES LT,0
South Ribble Borough Council,http://statistics.data.gov.uk/id/local-authority/30UE,Surplus or Deficit on Trading,Premises Repair & Mtne,2021,2021 / 2022 contract for water hygiene monitoring at Hutton Pavilion,17/11/2021,0000473201,46.25,Revenue,KNOWSLEY BLD & ENVIRONMENTAL SERVICES LT,0
South Ribble Borough Council,http://statistics.data.gov.uk/id/local-authority/30UE,Surplus or Deficit on Trading,Premises Repair & Mtne,2021,2021 / 2022 contract for water hygiene monitoring at Kingsfold pavilion,17/11/2021,0000473201,54.00,Revenue,KNOWSLEY BLD & ENVIRONMENTAL SERVICES LT,0
South Ribble Borough Council,http://statistics.data.gov.uk/id/local-authority/30UE,Surplus or Deficit on Trading,Premises Repair & Mtne,2021,2021 / 2022 contract for water hygiene monitoring at sports pavilions Worden Park (formerly long pavilion),17/11/2021,0000473201,46.25,Revenue,KNOWSLEY BLD & ENVIRONMENTAL SERVICES LT,0
South Ribble Borough Council,http://statistics.data.gov.uk/id/local-authority/30UE,Surplus or Deficit on Trading,Premises Repair & Mtne,2021,2021 / 2022 contract for water hygiene monitoring at Moss Side Pavilion,17/11/2021,0000473201,54.00,Revenue,KNOWSLEY BLD & ENVIRONMENTAL SERVICES LT,0
South Ribble Borough Council,http://statistics.data.gov.uk/id/local-authority/30UE,Surplus or Deficit on Trading,Premises Repair & Mtne,2021,2021 / 2022 contract for water hygiene monitoring at Much Hoole Pavilion,17/11/2021,0000473201,46.25,Revenue,KNOWSLEY BLD & ENVIRONMENTAL SERVICES LT,0
South Ribble Borough Council,http://statistics.data.gov.uk/id/local-authority/30UE,Surplus or Deficit on Trading,Premises Repair & Mtne,2021,2021 / 2022 contract for water hygiene monitoring at Penwortham Holme,17/11/2021,0000473201,46.25,Revenue,KNOWSLEY BLD & ENVIRONMENTAL SERVICES LT,0
South Ribble Borough Council,http://statistics.data.gov.uk/id/local-authority/30UE,Surplus or Deficit on Trading,Premises Repair & Mtne,2021,2021 / 2022 contract for water hygiene monitoring at St Cuthbert`s Pavilion,17/11/2021,0000473201,46.25,Revenue,KNOWSLEY BLD & ENVIRONMENTAL SERVICES LT,0
South Ribble Borough Council,http://statistics.data.gov.uk/id/local-authority/30UE,Surplus or Deficit on Trading,Premises Repair & Mtne,2021,2021 / 2022 contract for water hygiene monitoring at Withy Grove Pavilion,17/11/2021,0000473201,54.00,Revenue,KNOWSLEY BLD & ENVIRONMENTAL SERVICES LT,0
South Ribble Borough Council,http://statistics.data.gov.uk/id/local-authority/30UE,Surplus or Deficit on Trading,Premises Repair & Mtne,2021,2021 / 2022 contract for water hygiene monitoring at Holland House Farm Pavilion,17/11/2021,0000473201,46.25,Revenue,KNOWSLEY BLD & ENVIRONMENTAL SERVICES LT,0
South Ribble Borough Council,http://statistics.data.gov.uk/id/local-authority/30UE,Surplus or Deficit on Trading,Premises Repair & Mtne,2021,"2021 / 2022 contract for water hygiene monitoring at The Derby Wing, Worden Park",17/11/2021,0000473201,43.75,Revenue,KNOWSLEY BLD & ENVIRONMENTAL SERVICES LT,0
South Ribble Borough Council,http://statistics.data.gov.uk/id/local-authority/30UE,Surplus or Deficit on Trading,Premises Repair & Mtne,2021,2021 / 2022 contract for water hygiene monitoring at Carr Street Community Centre,17/11/2021,0000473201,43.75,Revenue,KNOWSLEY BLD & ENVIRONMENTAL SERVICES LT,0
South Ribble Borough Council,http://statistics.data.gov.uk/id/local-authority/30UE,Surplus or Deficit on Trading,Premises Repair & Mtne,2021,2021 / 2022 contract for water hygiene monitoring at Higher Walton Community Centre,17/11/2021,0000473201,43.75,Revenue,KNOWSLEY BLD & ENVIRONMENTAL SERVICES LT,0
South Ribble Borough Council,http://statistics.data.gov.uk/id/local-authority/30UE,Surplus or Deficit on Trading,Premises Repair & Mtne,2021,2021 / 2022 contract for water hygiene monitoring at Moss Side Community Centre,17/11/2021,0000473201,43.75,Revenue,KNOWSLEY BLD & ENVIRONMENTAL SERVICES LT,0
South Ribble Borough Council,http://statistics.data.gov.uk/id/local-authority/30UE,Surplus or Deficit on Trading,Premises Repair & Mtne,2021,2021 / 2022 contract for water hygiene monitoring at Worden Arts & Craft Centre,17/11/2021,0000473201,59.25,Revenue,KNOWSLEY BLD & ENVIRONMENTAL SERVICES LT,0
South Ribble Borough Council,http://statistics.data.gov.uk/id/local-authority/30UE,Economic Development,Premises Repair & Mtne,2021,2021 / 2022 contract for water hygiene monitoring at Leyland Market,17/11/2021,0000473201,43.75,Revenue,KNOWSLEY BLD & ENVIRONMENTAL SERVICES LT,0
South Ribble Borough Council,http://statistics.data.gov.uk/id/local-authority/30UE,Surplus or Deficit on Trading,Premises Repair & Mtne,2021,2021 / 2022  contract for water hygiene monitoring at Hurst Grange Park,17/11/2021,0000473201,43.75,Revenue,KNOWSLEY BLD & ENVIRONMENTAL SERVICES LT,0
South Ribble Borough Council,http://statistics.data.gov.uk/id/local-authority/30UE,Regulatory Services,Premises Repair & Mtne,2021,"2021 / 2022 contract, 2 visits per year for water hygiene monitoring at Crossroads toilets, Worden Park",17/11/2021,0000473201,46.50,Revenue,KNOWSLEY BLD & ENVIRONMENTAL SERVICES LT,0
South Ribble Borough Council,http://statistics.data.gov.uk/id/local-authority/30UE,Regulatory Services,Premises Repair & Mtne,2021,"2021 / 2022 contract, 2 visits per year for water hygiene monitoring at Hope Terrace Public toilets",17/11/2021,0000473201,46.50,Revenue,KNOWSLEY BLD & ENVIRONMENTAL SERVICES LT,0
South Ribble Borough Council,http://statistics.data.gov.uk/id/local-authority/30UE,Surplus or Deficit on Trading,Premises Repair & Mtne,2021,2021 / 2022 contract for water hygiene monitoring at SR Museum & Exhibition Centre,17/11/2021,0000473201,52.50,Revenue,KNOWSLEY BLD & ENVIRONMENTAL SERVICES LT,0
South Ribble Borough Council,http://statistics.data.gov.uk/id/local-authority/30UE,Central Support Services,Premises Repair & Mtne,2021,"2021 / 2022 contract, 12 visits per year for water hygiene monitoring at the Civic Centre, Leyland",17/11/2021,0000473201,185.75,Revenue,KNOWSLEY BLD & ENVIRONMENTAL SERVICES LT,0
South Ribble Borough Council,http://statistics.data.gov.uk/id/local-authority/30UE,Central Support Services,Premises Repair & Mtne,2021,2021 / 2022 contract for water hygiene monitoring at Moss Side Depot,17/11/2021,0000473201,112.75,Revenue,KNOWSLEY BLD & ENVIRONMENTAL SERVICES LT,0
South Ribble Borough Council,http://statistics.data.gov.uk/id/local-authority/30UE,Surplus or Deficit on Trading,Premises Repair & Mtne,2021,2021 / 2022 contract for water hygiene monitoring at Longton Pavilion,17/11/2021,0000473201,46.25,Revenue,KNOWSLEY BLD & ENVIRONMENTAL SERVICES LT,0
South Ribble Borough Council,http://statistics.data.gov.uk/id/local-authority/30UE,Central Support Services,Premises Repair & Mtne,2021,Additional 6 monthly sampling at Moss Side Depot,17/11/2021,0000473201,33.00,Revenue,KNOWSLEY BLD & ENVIRONMENTAL SERVICES LT,0
South Ribble Borough Council,http://statistics.data.gov.uk/id/local-authority/30UE,Waste Collection,Waste Disposal,5112,July 2021 - Incineration of clinical waste,24/11/2021,0000473482,725.78,Revenue,LANCASHIRE TEACHING FT,0
South Ribble Borough Council,http://statistics.data.gov.uk/id/local-authority/30UE,Community Development,Services,4510,"Delivery of 4 participatory workshops. 2x �Fitness Bootcamp� workshops, 2x `Mobile phone film-making workshops`",03/11/2021,0000472950,720.00,Revenue,Lancashire Youth Challenge,0
South Ribble Borough Council,http://statistics.data.gov.uk/id/local-authority/30UE,Local Land Charges,Services,4530,LAND CHARGES - JUNE 2021,10/11/2021,0000473137,"2,046.00",Revenue,LANCS COUNTY COUNCIL,0
South Ribble Borough Council,http://statistics.data.gov.uk/id/local-authority/30UE,Local Land Charges,Services,4530,LAND CHARGES - JULY 2021,10/11/2021,0000473137,"3,658.00",Revenue,LANCS COUNTY COUNCIL,0
South Ribble Borough Council,http://statistics.data.gov.uk/id/local-authority/30UE,Local Land Charges,Services,4530,LAND CHARGES - AUGUST 2021,10/11/2021,0000473137,"1,116.00",Revenue,LANCS COUNTY COUNCIL,0
South Ribble Borough Council,http://statistics.data.gov.uk/id/local-authority/30UE,Local Land Charges,Services,4530,LAND CHARGES - SEPTEMBER 2021,10/11/2021,0000473137,"1,157.50",Revenue,LANCS COUNTY COUNCIL,0
South Ribble Borough Council,http://statistics.data.gov.uk/id/local-authority/30UE,Capital,Deferrd Chgs-Improvemnt Grants,C570,DFG WORK TO SUPPLY AND INSTALL HOISTING EQUIPMENT AT ADDRESS REDACTED AS PER QUOTE SUPPLIED OF 2430.02,10/11/2021,0000473202,"2,430.02",Revenue,LANCS COUNTY COUNCIL,0
South Ribble Borough Council,http://statistics.data.gov.uk/id/local-authority/30UE,Central Support Services,Furniture- Equip & Materials,4040,"1x fuel filter kit & oil, YD19 AUM, JFC17547 (NAME REDACTED)",17/11/2021,0000473352,405.42,Revenue,LANCS DAF,0
South Ribble Borough Council,http://statistics.data.gov.uk/id/local-authority/30UE,Central Support Services,Furniture- Equip & Materials,4040,1 brake chamber YD19 AUM JFC17547,24/11/2021,0000473458,483.45,Revenue,LANCS DAF,0
South Ribble Borough Council,http://statistics.data.gov.uk/id/local-authority/30UE,Central Support Services,Furniture- Equip & Materials,4040,"1 x headlight, 1 x fog light, 1 x bumper, 1 x headlight panel, 1 x fog light panel, YA19NJZ, JFC17502",24/11/2021,0000473492,536.85,Revenue,LANCS DAF,0
South Ribble Borough Council,http://statistics.data.gov.uk/id/local-authority/30UE,Development Control,Services,4510,Consultancy advice re Planning Application at Pickerings Farm,10/11/2021,0000473148,461.00,Revenue,Land Use Consultants Limited,0
South Ribble Borough Council,http://statistics.data.gov.uk/id/local-authority/30UE,Capital,Capital Other Land & Bldgs,C230,Mckenzie Arms - Housing Development - Valuation request,03/11/2021,0000472842,500.00,Revenue,LEA HOUGH & CO,0
South Ribble Borough Council,http://statistics.data.gov.uk/id/local-authority/30UE,Economic Development,Services,4510,PSDS for Leisure Centres per NAME REDACTED.,03/11/2021,0000472922,"3,000.00",Revenue,LEISURE ENERGY,0
South Ribble Borough Council,http://statistics.data.gov.uk/id/local-authority/30UE,Recreation & Sport,Premises Repair & Mtne,2020,1- Double Width Step - Thread 95.00,24/11/2021,0000473491,95.00,Revenue,LeisureTeq,0
South Ribble Borough Council,http://statistics.data.gov.uk/id/local-authority/30UE,Recreation & Sport,Premises Repair & Mtne,2020,3x Certikin/ Astral s/s Step Thread 57.00  171.00,24/11/2021,0000473491,171.00,Revenue,LeisureTeq,0
South Ribble Borough Council,http://statistics.data.gov.uk/id/local-authority/30UE,Recreation & Sport,Premises Repair & Mtne,2020,4x Plastic Reducing Shims pack 2 4.60 18.40,24/11/2021,0000473491,18.40,Revenue,LeisureTeq,0
South Ribble Borough Council,http://statistics.data.gov.uk/id/local-authority/30UE,Central Support Services,Printing- Stat & Office Expens,4142,PATERSONS LICENSING ACT 2022 AND CD SET - PUBLICATION DATE 21 OCTOBER 2021,24/11/2021,0000473172,185.39,Revenue,LEXISNEXIS BUTTERWORTHS,0
South Ribble Borough Council,http://statistics.data.gov.uk/id/local-authority/30UE,Central Support Services,Printing- Stat & Office Expens,4142,zero rate,24/11/2021,0000473172,174.60,Revenue,LEXISNEXIS BUTTERWORTHS,0
South Ribble Borough Council,http://statistics.data.gov.uk/id/local-authority/30UE,Central Support Services,Printing- Stat & Office Expens,4142,carriage,24/11/2021,0000473172,7.00,Revenue,LEXISNEXIS BUTTERWORTHS,0
South Ribble Borough Council,http://statistics.data.gov.uk/id/local-authority/30UE,Central Support Services,Printing- Stat & Office Expens,4142,Okes Magisterial Formulist 20ED OOSE LEAF Period 09/12/2021 to 8/12/22 - 1 year subscription,24/11/2021,0000473528,"1,433.00",Revenue,LEXISNEXIS BUTTERWORTHS,0
South Ribble Borough Council,http://statistics.data.gov.uk/id/local-authority/30UE,Democratic Represent and  Mgnt,Furniture- Equip & Materials,4013,"For the supply and installation of External Grade solar film to 6no. panes, and to install a cut vinyl logo to match existing over the top of 1no. pane.",24/11/2021,0000473375,695.00,Revenue,LUSTALUX LTD,0
South Ribble Borough Council,http://statistics.data.gov.uk/id/local-authority/30UE,Capital,Capital Other Land & Bldgs,C230,"Supply and offload of 40 x 10 ft  2 team once officials sports changing unit as per agreed spec in quote, corrugated as per NAME REDACTED",17/11/2021,0000473128,"8,450.00",Revenue,MAC Container Company Ltd,0
South Ribble Borough Council,http://statistics.data.gov.uk/id/local-authority/30UE,Capital,Deferrd Chgs-Improvemnt Grants,C570,"DFG WORKS FOR LEVEL ACCESS BATHROOM AND RAMP AT ADDRESS REDACTED. NEW PROGRESS PROPERTY, 50% OF QUOTE",03/11/2021,0000472782,"2,769.27",Revenue,MAHONEY CONTRACTORS LTD,0
South Ribble Borough Council,http://statistics.data.gov.uk/id/local-authority/30UE,Parking Services,Furniture- Equip & Materials,4040,2 x HAZELWOOD CLOSE T @ 53.40,10/11/2021,0000473052,106.80,Revenue,Main Street Signs Ltd,0
South Ribble Borough Council,http://statistics.data.gov.uk/id/local-authority/30UE,Parking Services,Furniture- Equip & Materials,4040,1 X TOMLINSON ROAD T,10/11/2021,0000473052,52.30,Revenue,Main Street Signs Ltd,0
South Ribble Borough Council,http://statistics.data.gov.uk/id/local-authority/30UE,Parking Services,Furniture- Equip & Materials,4040,1 X CHARNOCK STREET T,10/11/2021,0000473052,53.40,Revenue,Main Street Signs Ltd,0
South Ribble Borough Council,http://statistics.data.gov.uk/id/local-authority/30UE,Parking Services,Furniture- Equip & Materials,4040,1 X PROSPECT AVENUE,10/11/2021,0000473052,50.40,Revenue,Main Street Signs Ltd,0
South Ribble Borough Council,http://statistics.data.gov.uk/id/local-authority/30UE,Parking Services,Furniture- Equip & Materials,4040,1 X BROADFIELD DRIVE,10/11/2021,0000473052,51.50,Revenue,Main Street Signs Ltd,0
South Ribble Borough Council,http://statistics.data.gov.uk/id/local-authority/30UE,Parking Services,Furniture- Equip & Materials,4040,2 X WOODVILLE ROAD @ 49.30,10/11/2021,0000473052,98.60,Revenue,Main Street Signs Ltd,0
South Ribble Borough Council,http://statistics.data.gov.uk/id/local-authority/30UE,Parking Services,Furniture- Equip & Materials,4040,1 X HAYDOCK AVENUE T,10/11/2021,0000473052,52.30,Revenue,Main Street Signs Ltd,0
South Ribble Borough Council,http://statistics.data.gov.uk/id/local-authority/30UE,Parking Services,Furniture- Equip & Materials,4040,DELIVERY CHARGE,10/11/2021,0000473052,29.50,Revenue,Main Street Signs Ltd,0
South Ribble Borough Council,http://statistics.data.gov.uk/id/local-authority/30UE,Central Support Services,Premises Repair & Mtne,2021,"Civic Centre, West Paddock, Leyland 6,021 sq, Civic Centre Double Garage (rear car park) 31 sqm, FRA as per NAME REDACTED",17/11/2021,0000473206,625.00,Revenue,Manchester Fire Compliance Ltd,0
South Ribble Borough Council,http://statistics.data.gov.uk/id/local-authority/30UE,Surplus or Deficit on Trading,Premises Repair & Mtne,2020,"Call out to Longton Brickcroft, Fix faulty bell and replace with 1 I-SDR1200-G3-(E) Marlowe X/E Live Texecom Grade 3 Bell Complete.",03/11/2021,0000472911,274.80,Revenue,Marlowe Fire & Security,0
South Ribble Borough Council,http://statistics.data.gov.uk/id/local-authority/30UE,Capital,Deferrd Chgs-Improvemnt Grants,C570,DFG WORK FOR ADAPTATION TO CREATE BEDROOM/BATHROOM AT ADDRESS REDACTED AS PER SRBC PLANS AND QUOTE,17/11/2021,0000473366,"10,000.00",Revenue,MBP CONSTRUCTION(NW) LTD,0
South Ribble Borough Council,http://statistics.data.gov.uk/id/local-authority/30UE,Short Term Creditors,Balance Sheet,0008,refund of paymt rec'd in error,24/11/2021,0000473433,755.52,Revenue,Mears Ltd,0
South Ribble Borough Council,http://statistics.data.gov.uk/id/local-authority/30UE,Recreation & Sport,Services,4510,August 2021 Instructor Fee,10/11/2021,0000473080,660.00,Revenue,Michaela Halley,0
South Ribble Borough Council,http://statistics.data.gov.uk/id/local-authority/30UE,Surplus or Deficit on Trading,Premises Repair & Mtne,2020,"Key Shop Bamber bridge.Erect scaffolding.Remove slates and batton.Refelt, rebatton an reslate using existing slates.Apply fibre glass gutter.",03/11/2021,0000472641,"4,800.00",Revenue,Mick Bamber,0
South Ribble Borough Council,http://statistics.data.gov.uk/id/local-authority/30UE,Central Support Services,Services,4570,WINCH VEHICLE OUT OF DITCH ON ALTCAR LANE ONTO HARD STANDING AND RECOVER TO BISON PLACE VA19 KOX JFC17488,10/11/2021,0000473069,601.00,Revenue,MILLERS OF LONGTON LTD,0
South Ribble Borough Council,http://statistics.data.gov.uk/id/local-authority/30UE,Central Support Services,Services,4570,Spec Repair YD19 AUN JFC 17577,24/11/2021,0000473484,761.58,Revenue,Municipal Vehicle Services,0
South Ribble Borough Council,http://statistics.data.gov.uk/id/local-authority/30UE,Central Support Services,Communications & Comuting,4241,"VersaBright long reach adjustable brightness LED light with desk clamp and weighted base, 6500k (daylight), Clover 6 auto focus video magnifier",10/11/2021,0000473070,"1,767.44",Revenue,MYPREMIER LTD,0
South Ribble Borough Council,http://statistics.data.gov.uk/id/local-authority/30UE,Central Support Services,Services,4570,Steam Clean PO20 ZRY JFC17508,10/11/2021,0000473138,65.00,Revenue,NAYLORS TRANSPORT (LEYLAND) ltd,0
South Ribble Borough Council,http://statistics.data.gov.uk/id/local-authority/30UE,Central Support Services,Services,4570,Steam Clean VO21 YVG JFC17509,10/11/2021,0000473138,65.00,Revenue,NAYLORS TRANSPORT (LEYLAND) ltd,0
South Ribble Borough Council,http://statistics.data.gov.uk/id/local-authority/30UE,Central Support Services,Services,4570,Steam Clean PO20 ZRX JFC17510,10/11/2021,0000473138,65.00,Revenue,NAYLORS TRANSPORT (LEYLAND) ltd,0
South Ribble Borough Council,http://statistics.data.gov.uk/id/local-authority/30UE,Central Support Services,Services,4570,Steam Clean PJ62 UCM JFC17511,10/11/2021,0000473138,65.00,Revenue,NAYLORS TRANSPORT (LEYLAND) ltd,0
South Ribble Borough Council,http://statistics.data.gov.uk/id/local-authority/30UE,Central Support Services,Services,4570,Steam Clean VO21 YVL JFC17512,10/11/2021,0000473138,65.00,Revenue,NAYLORS TRANSPORT (LEYLAND) ltd,0
South Ribble Borough Council,http://statistics.data.gov.uk/id/local-authority/30UE,Central Support Services,Services,4570,Steam Clean YD19 ATY JFC17513,10/11/2021,0000473139,65.00,Revenue,NAYLORS TRANSPORT (LEYLAND) ltd,0
South Ribble Borough Council,http://statistics.data.gov.uk/id/local-authority/30UE,Central Support Services,Services,4570,Steam Clean YD19 AUM JFC17514,10/11/2021,0000473139,65.00,Revenue,NAYLORS TRANSPORT (LEYLAND) ltd,0
South Ribble Borough Council,http://statistics.data.gov.uk/id/local-authority/30UE,Central Support Services,Services,4570,Steam Clean YD19 AUT JFC17515,10/11/2021,0000473139,65.00,Revenue,NAYLORS TRANSPORT (LEYLAND) ltd,0
South Ribble Borough Council,http://statistics.data.gov.uk/id/local-authority/30UE,Central Support Services,Services,4570,Steam Clean VU60 HLE JFC17516,10/11/2021,0000473139,65.00,Revenue,NAYLORS TRANSPORT (LEYLAND) ltd,0
South Ribble Borough Council,http://statistics.data.gov.uk/id/local-authority/30UE,Central Support Services,Services,4570,Steam Clean YA19 NKD JFC17517,10/11/2021,0000473139,65.00,Revenue,NAYLORS TRANSPORT (LEYLAND) ltd,0
South Ribble Borough Council,http://statistics.data.gov.uk/id/local-authority/30UE,Central Support Services,Services,4570,Steam Clean VU58 JXK JFC17518,10/11/2021,0000473139,65.00,Revenue,NAYLORS TRANSPORT (LEYLAND) ltd,0
South Ribble Borough Council,http://statistics.data.gov.uk/id/local-authority/30UE,Central Support Services,Services,4570,Steam Clean - Very Dirty Extra Time Required YD19 ATK JFC17519,10/11/2021,0000473139,85.00,Revenue,NAYLORS TRANSPORT (LEYLAND) ltd,0
South Ribble Borough Council,http://statistics.data.gov.uk/id/local-authority/30UE,Central Support Services,Services,4570,Steam Clean VU11 HSZ JFC17520,10/11/2021,0000473139,65.00,Revenue,NAYLORS TRANSPORT (LEYLAND) ltd,0
South Ribble Borough Council,http://statistics.data.gov.uk/id/local-authority/30UE,Service Management & Support,Services,4570,Repairs to Diesel Pump at Moss Side Depot on 28.10.2021,17/11/2021,0000473221,716.00,Revenue,NIXON PUMPS,0
South Ribble Borough Council,http://statistics.data.gov.uk/id/local-authority/30UE,Economic Development,Miscellaneous Expenses,4851,"1 STD PORTABLE TOILET, DISABLED PORTABLE TOILET WITH BABY CHANGING FACILITY, Price inculdes delivery and collection",03/11/2021,0000472231,300.00,Revenue,Northwest Portable Toilet Company Ltd,0
South Ribble Borough Council,http://statistics.data.gov.uk/id/local-authority/30UE,Recreation & Sport,Energy Costs,2303,1/8 to 31/8/21,03/11/2021,0000472465,"2,904.20",Revenue,NPOWER Business,0
South Ribble Borough Council,http://statistics.data.gov.uk/id/local-authority/30UE,Recreation & Sport,Energy Costs,2303,1/8 to 31/8/21,03/11/2021,0000472466,"5,766.81",Revenue,NPOWER Business,0
South Ribble Borough Council,http://statistics.data.gov.uk/id/local-authority/30UE,Recreation & Sport,Energy Costs,2303,1/8 to 31/8/21,03/11/2021,0000472467,"2,536.02",Revenue,NPOWER Business,0
South Ribble Borough Council,http://statistics.data.gov.uk/id/local-authority/30UE,Recreation & Sport,Energy Costs,2303,1/8 to 31/8/21,03/11/2021,0000472468,"3,564.80",Revenue,NPOWER Business,0
South Ribble Borough Council,http://statistics.data.gov.uk/id/local-authority/30UE,Recreation & Sport,Energy Costs,2303,1/7 to 31/7/21,03/11/2021,0000472633,"2,169.00",Revenue,NPOWER Business,0
South Ribble Borough Council,http://statistics.data.gov.uk/id/local-authority/30UE,Recreation & Sport,Energy Costs,2303,1/5 to 31/5/21,03/11/2021,0000472634,"1,938.50",Revenue,NPOWER Business,0
South Ribble Borough Council,http://statistics.data.gov.uk/id/local-authority/30UE,Recreation & Sport,Energy Costs,2303,1/7 to 31/7/21,03/11/2021,0000472635,"4,911.90",Revenue,NPOWER Business,0
South Ribble Borough Council,http://statistics.data.gov.uk/id/local-authority/30UE,Recreation & Sport,Energy Costs,2303,1/6 to 30/6/21,03/11/2021,0000472636,"2,078.34",Revenue,NPOWER Business,0
South Ribble Borough Council,http://statistics.data.gov.uk/id/local-authority/30UE,Recreation & Sport,Energy Costs,2303,1/4 to 30/4/21,03/11/2021,0000472637,"1,452.88",Revenue,NPOWER Business,0
South Ribble Borough Council,http://statistics.data.gov.uk/id/local-authority/30UE,Parking Services,Services,4514,Deployment of officers- September 2021,10/11/2021,0000473171,"1,517.22",Revenue,NSL LTD,0
South Ribble Borough Council,http://statistics.data.gov.uk/id/local-authority/30UE,Parking Services,Miscellaneous Expenses,4855,"Cash collection, counting and bulk cash collection",10/11/2021,0000473171,608.90,Revenue,NSL LTD,0
South Ribble Borough Council,http://statistics.data.gov.uk/id/local-authority/30UE,Open Spaces,Services,4526,Price per contracted itemised collection,10/11/2021,0000473171,41.94,Revenue,NSL LTD,0
South Ribble Borough Council,http://statistics.data.gov.uk/id/local-authority/30UE,Community Development,Miscellaneous Expenses,4851,Support for a resident through Step Up grant applications,17/11/2021,0000473217,510.00,Revenue,Oakleaf Care Ltd,0
South Ribble Borough Council,http://statistics.data.gov.uk/id/local-authority/30UE,Central Support Services,Furniture- Equip & Materials,4013,"Provide and install roman style lattice steel arch, x2 Oxford style wooden benches, a slate tile name sign",10/11/2021,0000472676,"2,231.54",Revenue,Oakley Landscaping Ltd,0
South Ribble Borough Council,http://statistics.data.gov.uk/id/local-authority/30UE,Democratic Represent and  Mgnt,Grants & Subscriptions,4720,MEMBERSHIP SUBSCRIPTION RENEWAL TO CO-OPERATIVE COUNCIL'S INNOVATION NETWORK FOR 2021-2022,10/11/2021,0000473089,"1,830.00",Revenue,OLDHAM COUNCIL,0
South Ribble Borough Council,http://statistics.data.gov.uk/id/local-authority/30UE,Central Support Services,Furniture- Equip & Materials,4040,JANGRO CLEANER DISNFECTANT- 6 PER CASE 8.10 BA048-75,10/11/2021,0000473018,8.10,Revenue,Pattersons (Bristol) Ltd,0
South Ribble Borough Council,http://statistics.data.gov.uk/id/local-authority/30UE,Central Support Services,Furniture- Equip & Materials,4040,ACIDIC TOILET CLEANER AND DESCALER - 1 LTR BC060-1,10/11/2021,0000473018,12.24,Revenue,Pattersons (Bristol) Ltd,0
South Ribble Borough Council,http://statistics.data.gov.uk/id/local-authority/30UE,Central Support Services,Furniture- Equip & Materials,4040,LEMON FLOOR GEL,10/11/2021,0000473018,52.80,Revenue,Pattersons (Bristol) Ltd,0
South Ribble Borough Council,http://statistics.data.gov.uk/id/local-authority/30UE,Central Support Services,"Clothes,uniform & laundry",4410, DISPOSABLE GLOVES NITRILE (BOX- 100) MEDIUM,10/11/2021,0000473018,222.00,Revenue,Pattersons (Bristol) Ltd,0
South Ribble Borough Council,http://statistics.data.gov.uk/id/local-authority/30UE,Central Support Services,"Clothes,uniform & laundry",4410,DISPOSABLE GLOVES NITRILE (BOX- 100) LARGE,10/11/2021,0000473018,222.00,Revenue,Pattersons (Bristol) Ltd,0
South Ribble Borough Council,http://statistics.data.gov.uk/id/local-authority/30UE,Central Support Services,"Clothes,uniform & laundry",4410,DISPOSABLE GLOVES NITRILE (BOX- 100) X LARGE,10/11/2021,0000473018,222.00,Revenue,Pattersons (Bristol) Ltd,0
South Ribble Borough Council,http://statistics.data.gov.uk/id/local-authority/30UE,Central Support Services,Cleaning & Domestic Supplies,2711,3PLY GENERAL PURPOSE TYPE I FACE MASK (50) 100 boxes @ 8.00,24/11/2021,0000473213,760.00,Revenue,Pattersons (Bristol) Ltd,0
South Ribble Borough Council,http://statistics.data.gov.uk/id/local-authority/30UE,Central Support Services,Communications & Comuting,4243,01262008 AAA-10756 Microsoft 365 E3 Shared Server All Language Subscription Per User - Licence 360 116.67,12/11/2021,0000472624,"42,001.20",Revenue,PHOENIX SOFTWARE LTD,0
South Ribble Borough Council,http://statistics.data.gov.uk/id/local-authority/30UE,Central Support Services,Communications & Comuting,4243,01397574 AAA-10756LR Microsoft 365 E3 Shared Server All Language Subscription Per User - Licence 20,10/11/2021,0000473031,"1,666.60",Revenue,PHOENIX SOFTWARE LTD,0
South Ribble Borough Council,http://statistics.data.gov.uk/id/local-authority/30UE,Central Support Services,Furniture- Equip & Materials,4040,205l drum ATF (Dexron) @ 1.38 per litre,17/11/2021,0000473006,282.90,Revenue,PILKINGTON OILS,0
South Ribble Borough Council,http://statistics.data.gov.uk/id/local-authority/30UE,Central Support Services,Furniture- Equip & Materials,4040,1 x 205l drum EP80/90W Gear oil @ 1.56ppl,17/11/2021,0000473006,489.95,Revenue,PILKINGTON OILS,0
South Ribble Borough Council,http://statistics.data.gov.uk/id/local-authority/30UE,Central Support Services,Furniture- Equip & Materials,4040,1 x 36 EP2 Grease Cartridges @ 1.49,17/11/2021,0000473006,53.64,Revenue,PILKINGTON OILS,0
South Ribble Borough Council,http://statistics.data.gov.uk/id/local-authority/30UE,Central Support Services,Furniture- Equip & Materials,4040,1 X 205l Drum ATF Fluid @ 1.18 per litre,17/11/2021,0000473363,241.90,Revenue,PILKINGTON OILS,0
South Ribble Borough Council,http://statistics.data.gov.uk/id/local-authority/30UE,Central Support Services,Furniture- Equip & Materials,4040,1 x 50kg Drum EP00 Grease @ 135.00,17/11/2021,0000473363,270.00,Revenue,PILKINGTON OILS,0
South Ribble Borough Council,http://statistics.data.gov.uk/id/local-authority/30UE,Central Support Services,Communications & Comuting,4292,Meter reset Serial number 5557641 - value 9000 and underpayment fee.,17/11/2021,0000473419,"9,164.60",Revenue,PITNEY BOWES LTD,0
South Ribble Borough Council,http://statistics.data.gov.uk/id/local-authority/30UE,Central Support Services,Communications & Comuting,4243,"Annual Rental for: Rental Royal Mail Rates Inland & Oversea, Civic Centre, pr25 1dh, 29.08.2021 to 28.08.2022, Rental Royal Mail Special Rates",17/11/2021,0000473419,210.00,Revenue,PITNEY BOWES LTD,0
South Ribble Borough Council,http://statistics.data.gov.uk/id/local-authority/30UE,Central Support Services,Salaries,1121,Planning Enforcement Services,10/11/2021,0000473132,"1,140.00",Revenue,Planning Control & PACE Solutions,0
South Ribble Borough Council,http://statistics.data.gov.uk/id/local-authority/30UE,Central Support Services,Salaries,1121,Planning Enforcement Services,24/11/2021,0000473494,"1,140.00",Revenue,Planning Control & PACE Solutions,0
South Ribble Borough Council,http://statistics.data.gov.uk/id/local-authority/30UE,Development Control,Miscellaneous Expenses,485R,refund ADDRESS REDACTED,24/11/2021,0000472971,462.00,Revenue,Planning Portal,0
South Ribble Borough Council,http://statistics.data.gov.uk/id/local-authority/30UE,Economic Development,Miscellaneous Expenses,4848,"8 no units - Withy Grove banners, Heras size MESH Unit(s) Mesh banners - single Heras fence panel size 4 of each design as per quote",24/11/2021,0000472915,937.46,Revenue,Poppy Signs Ltd,0
South Ribble Borough Council,http://statistics.data.gov.uk/id/local-authority/30UE,Capital,Capital Other Land & Bldgs,C230,Hoarding Signage Worden Hall refurbishment as per NAME REDACTED request,03/11/2021,0000472936,"4,008.80",Revenue,Poppy Signs Ltd,0
South Ribble Borough Council,http://statistics.data.gov.uk/id/local-authority/30UE,Central Support Services,Printing- Stat & Office Expens,4133,"Premier Paper supplies 2021-31/03/2022, Please quote this reference on all future invoices",10/11/2021,0000473027,371.55,Revenue,PREMIER PAPER GROUP LTD,0
South Ribble Borough Council,http://statistics.data.gov.uk/id/local-authority/30UE,Central Support Services,Services,4570,Various tyres TR36,10/11/2021,0000473066,549.51,Revenue,PRESTON TYRE SPECIALISTS,0
South Ribble Borough Council,http://statistics.data.gov.uk/id/local-authority/30UE,Elections,Printing- Stat & Office Expens,4127,"ORDER AS PER JOB NUMBER 8640, 5,000 16 CANVASSER CALLING CARDS (STAGE 4 CANVASS)",17/11/2021,0000473329,699.00,Revenue,PRINT IMAGE NETWORK LTD,0
South Ribble Borough Council,http://statistics.data.gov.uk/id/local-authority/30UE,Elections,Miscellaneous Expenses,4423,BBE BY-ELECTION - POLL CARDS - QUANTITY 4150 - JOB REF 8871,17/11/2021,0000473331,"1,297.00",Revenue,PRINT IMAGE NETWORK LTD,0
South Ribble Borough Council,http://statistics.data.gov.uk/id/local-authority/30UE,Elections,Printing- Stat & Office Expens,4127,ANNUAL CANVASS 2021: PRINTING OF STAGE 4 CANVASS COMMUNICATIONS & ENVELOPES,24/11/2021,0000473479,956.38,Revenue,PRINT IMAGE NETWORK LTD,0
South Ribble Borough Council,http://statistics.data.gov.uk/id/local-authority/30UE,Homelessness,Contractors Chges,5313,"Void loss, Temporary accommodation 4/10/20 - 31/03/21",12/11/2021,0000473196,"3,339.31",Revenue,PROGRESS HOUSING GRP ref:DNSOU001,0
South Ribble Borough Council,http://statistics.data.gov.uk/id/local-authority/30UE,Homelessness,Contractors Chges,5313,"Void loss Q2, 05/07/2021 - 03/10/2021",12/11/2021,0000473224,772.41,Revenue,PROGRESS HOUSING GRP ref:DNSOU001,0
South Ribble Borough Council,http://statistics.data.gov.uk/id/local-authority/30UE,Homelessness,Contractors Chges,5313,"Void loss, Q1 05/04/2021 - 04/07/2021",12/11/2021,0000473225,"1,996.07",Revenue,PROGRESS HOUSING GRP ref:DNSOU001,0
South Ribble Borough Council,http://statistics.data.gov.uk/id/local-authority/30UE,Other Welfare Services,Furniture- Equip & Materials,4017,"White Goods, Greenfield Dr",17/11/2021,0000473298,696.64,Revenue,PROGRESS HOUSING GRP ref:DNSOU001,0
South Ribble Borough Council,http://statistics.data.gov.uk/id/local-authority/30UE,Homelessness,Grants & Subscriptions,4730,rent in advance for ADDRESS REDACTED - re-instated on a new starter tenancy wef 8.10.21,17/11/2021,0000473376,427.88,Revenue,PROGRESS HOUSING GRP ref:DNSOU001,0
South Ribble Borough Council,http://statistics.data.gov.uk/id/local-authority/30UE,Central Support Services,Premises Repair & Mtne,2020,Please undertake works to the windows and window locks at the Civic Centre as per your quotation Q4281,03/11/2021,0000472823,240.00,Revenue,PSR & Sons Joiners & Building Contractors,0
South Ribble Borough Council,http://statistics.data.gov.uk/id/local-authority/30UE,Central Support Services,Premises Repair & Mtne,2020,LABOUR,03/11/2021,0000472823,40.00,Revenue,PSR & Sons Joiners & Building Contractors,0
South Ribble Borough Council,http://statistics.data.gov.uk/id/local-authority/30UE,Central Support Services,Premises Repair & Mtne,2020,"REMEDIAL WORKS TO GARAGES MSD as per NAME REDACTED request, Oil and Grease Existing Locking Mechanisms, Allow for Adjustment",03/11/2021,0000472825,240.00,Revenue,PSR & Sons Joiners & Building Contractors,0
South Ribble Borough Council,http://statistics.data.gov.uk/id/local-authority/30UE,Central Support Services,Premises Repair & Mtne,2020,LABOUR,03/11/2021,0000472825,20.00,Revenue,PSR & Sons Joiners & Building Contractors,0
South Ribble Borough Council,http://statistics.data.gov.uk/id/local-authority/30UE,Surplus or Deficit on Trading,Premises Repair & Mtne,2020,cancelled by credit 2203a materials,10/11/2021,0000472826,380.00,Revenue,PSR & Sons Joiners & Building Contractors,0
South Ribble Borough Council,http://statistics.data.gov.uk/id/local-authority/30UE,Surplus or Deficit on Trading,Premises Repair & Mtne,2020,cancelled by credit LABOUR,10/11/2021,0000472826,45.00,Revenue,PSR & Sons Joiners & Building Contractors,0
South Ribble Borough Council,http://statistics.data.gov.uk/id/local-authority/30UE,Surplus or Deficit on Trading,Premises Repair & Mtne,2020,To Replace Digital lock and Closer Arm as Required at Moss Side Community Centre,12/11/2021,0000473022,240.00,Revenue,PSR & Sons Joiners & Building Contractors,0
South Ribble Borough Council,http://statistics.data.gov.uk/id/local-authority/30UE,Surplus or Deficit on Trading,Premises Repair & Mtne,2020,LABOUR,12/11/2021,0000473022,25.00,Revenue,PSR & Sons Joiners & Building Contractors,0
South Ribble Borough Council,http://statistics.data.gov.uk/id/local-authority/30UE,Central Support Services,Premises Repair & Mtne,2020,"Please attend Civic Centre, replace door within kitchen area. MANUFACTURE AND INSTALL NEW SINGLE DOOR as per NAME REDACTED",24/11/2021,0000473511,700.00,Revenue,PSR & Sons Joiners & Building Contractors,0
South Ribble Borough Council,http://statistics.data.gov.uk/id/local-authority/30UE,Central Support Services,Premises Repair & Mtne,2020,LABOUR,24/11/2021,0000473511,35.20,Revenue,PSR & Sons Joiners & Building Contractors,0
South Ribble Borough Council,http://statistics.data.gov.uk/id/local-authority/30UE,Homelessness,Contractors Chges,5311,"NAME REDACTED (20/10/21  01/11/21) 12 Nights, Room Rates",24/11/2021,0000473497,550.00,Revenue,Purpleroomz,0
South Ribble Borough Council,http://statistics.data.gov.uk/id/local-authority/30UE,Central Support Services,Services,4510,HEALTH AND SAFETY CONSULTANCY AND SUPPORT 2021/2022,10/11/2021,0000473144,"1,080.00",Revenue,QHS SOLUTIONS,0
South Ribble Borough Council,http://statistics.data.gov.uk/id/local-authority/30UE,Recreation & Sport,Premises Repair & Mtne,2021,"Inhibitor Dosing Works, Wet side, Supply and dose Polyhib VX 0.5 to LPHW heating system. Dose 1 � litres Pseudokill. Collect final samples",24/11/2021,0000471391,520.00,Revenue,Quality Environmental Services Limited,0
South Ribble Borough Council,http://statistics.data.gov.uk/id/local-authority/30UE,Capital,Capital Other Land & Bldgs,C230,"Alteration, Adaption, Extension and Refurbishment Works - Hurst Grange Coach House, Penwortham",24/11/2021,0000473195,"3,072.28",Revenue,R Developments Ltd T/A Rosslee Construction Ltd,0
South Ribble Borough Council,http://statistics.data.gov.uk/id/local-authority/30UE,Open Spaces,Contract Hire & Operating Leas,3212,Hire of a 8T Excavator - 01/05/2021-31/05/2021,10/11/2021,0000472985,"1,330.00",Revenue,Readyplant Limited,0
South Ribble Borough Council,http://statistics.data.gov.uk/id/local-authority/30UE,Open Spaces,Contract Hire & Operating Leas,3212,Hire of a 8T Excavator - 01/06/2021-22/06/2021,10/11/2021,0000472987,"1,150.00",Revenue,Readyplant Limited,0
South Ribble Borough Council,http://statistics.data.gov.uk/id/local-authority/30UE,Open Spaces,Contract Hire & Operating Leas,3212,55 vat charge,10/11/2021,0000472987,24.30,Revenue,Readyplant Limited,0
South Ribble Borough Council,http://statistics.data.gov.uk/id/local-authority/30UE,Central Support Services,Premises Repair & Mtne,2020,"Flagging at the Civic Centre. Continuation of ongoing works as per NAME REDACTED. People have drove on flagged area, cracked flags",17/11/2021,0000473173,240.00,Revenue,RED ROSE BUILDING MAINTENANCE,0
South Ribble Borough Council,http://statistics.data.gov.uk/id/local-authority/30UE,Central Support Services,Premises Repair & Mtne,2020,MATERIALS,17/11/2021,0000473173,85.00,Revenue,RED ROSE BUILDING MAINTENANCE,0
South Ribble Borough Council,http://statistics.data.gov.uk/id/local-authority/30UE,Surplus or Deficit on Trading,Premises Repair & Mtne,2020,"Remedial works, fitting external land drains to South facing gable, clearance of Cavity and fitting two air bricks. As requested by NAME REDACTED",24/11/2021,0000473401,300.00,Revenue,RED ROSE BUILDING MAINTENANCE,0
South Ribble Borough Council,http://statistics.data.gov.uk/id/local-authority/30UE,Surplus or Deficit on Trading,Premises Repair & Mtne,2020,MATERIALS,24/11/2021,0000473401,90.00,Revenue,RED ROSE BUILDING MAINTENANCE,0
South Ribble Borough Council,http://statistics.data.gov.uk/id/local-authority/30UE,Central Support Services,Furniture- Equip & Materials,4040,5 x GPM4 Filter Kit @ 192.26 (G027),24/11/2021,0000473437,961.30,Revenue,Refuse Vehicle Parts,0
South Ribble Borough Council,http://statistics.data.gov.uk/id/local-authority/30UE,Central Support Services,Furniture- Equip & Materials,4040,2 x Underrun Sensor (G024) @ 300.00,24/11/2021,0000473437,600.00,Revenue,Refuse Vehicle Parts,0
South Ribble Borough Council,http://statistics.data.gov.uk/id/local-authority/30UE,Central Support Services,Furniture- Equip & Materials,4040,2 x Barrier Arms (G015) @ 85.00,24/11/2021,0000473437,237.64,Revenue,Refuse Vehicle Parts,0
South Ribble Borough Council,http://statistics.data.gov.uk/id/local-authority/30UE,Central Support Services,Furniture- Equip & Materials,4040,3 x Yoke Ram Bush (Composite) G056 @ 70.00,24/11/2021,0000473437,210.00,Revenue,Refuse Vehicle Parts,0
South Ribble Borough Council,http://statistics.data.gov.uk/id/local-authority/30UE,Central Support Services,Furniture- Equip & Materials,4040,1 x RH Hopper Top Cover (G039) @ 173.45,24/11/2021,0000473437,173.45,Revenue,Refuse Vehicle Parts,0
South Ribble Borough Council,http://statistics.data.gov.uk/id/local-authority/30UE,Central Support Services,Furniture- Equip & Materials,4040,6 x Step Bolts (G036) @ 2.75,24/11/2021,0000473437,16.50,Revenue,Refuse Vehicle Parts,0
South Ribble Borough Council,http://statistics.data.gov.uk/id/local-authority/30UE,Central Support Services,Furniture- Equip & Materials,4040,4 x Spring (G001) @ 6.16,24/11/2021,0000473437,36.96,Revenue,Refuse Vehicle Parts,0
South Ribble Borough Council,http://statistics.data.gov.uk/id/local-authority/30UE,Central Support Services,Furniture- Equip & Materials,4040,2 x Bump Stop (G004) @ 25.88,24/11/2021,0000473437,51.76,Revenue,Refuse Vehicle Parts,0
South Ribble Borough Council,http://statistics.data.gov.uk/id/local-authority/30UE,Central Support Services,Furniture- Equip & Materials,4040,2 x Proxy Switch (G008) @ 49.93,24/11/2021,0000473437,99.86,Revenue,Refuse Vehicle Parts,0
South Ribble Borough Council,http://statistics.data.gov.uk/id/local-authority/30UE,Central Support Services,Furniture- Equip & Materials,4040,3 x Sensor (G010) @ 164.15,24/11/2021,0000473437,492.45,Revenue,Refuse Vehicle Parts,0
South Ribble Borough Council,http://statistics.data.gov.uk/id/local-authority/30UE,Central Support Services,Furniture- Equip & Materials,4040,2 x Contact (G013) @ 7.25,24/11/2021,0000473437,14.50,Revenue,Refuse Vehicle Parts,0
South Ribble Borough Council,http://statistics.data.gov.uk/id/local-authority/30UE,Central Support Services,Furniture- Equip & Materials,4040,1 x Tailgate Seal (G032) @ 109.55,24/11/2021,0000473437,109.55,Revenue,Refuse Vehicle Parts,0
South Ribble Borough Council,http://statistics.data.gov.uk/id/local-authority/30UE,Central Support Services,Furniture- Equip & Materials,4040,1 x Bottom Tailgate Strip (G033) @ 72.03,24/11/2021,0000473437,72.03,Revenue,Refuse Vehicle Parts,0
South Ribble Borough Council,http://statistics.data.gov.uk/id/local-authority/30UE,Central Support Services,Furniture- Equip & Materials,4040,1 x Bin Lift Ram (G042) @ 187.24,24/11/2021,0000473437,187.24,Revenue,Refuse Vehicle Parts,0
South Ribble Borough Council,http://statistics.data.gov.uk/id/local-authority/30UE,Central Support Services,Training Expenses,1403,NAME REDACTED TO ATTEND DISTANCE COURSE TRAINING REQUIRED AS PART OF RICS QUALIFICATION,24/11/2021,0000473427,399.00,Revenue,RICS,0
South Ribble Borough Council,http://statistics.data.gov.uk/id/local-authority/30UE,Recreation & Sport,Miscellaneous Expenses,4851,"STITCH  - 460 (115 x 4), StaffMIS Set Up - 1500, Support Days 7,200 (16 days x 450)",03/11/2021,0000473026,"9,160.00",Revenue,Right Directions (Management) Ltd,0
South Ribble Borough Council,http://statistics.data.gov.uk/id/local-authority/30UE,Central Support Services,Services,4570,"Policy and Procedure Review, South Ribble Borough Council: Fire Safety, Electrical Safety, Asbestos Management, Gas Safety",10/11/2021,0000473186,"3,570.00",Revenue,Right Directions (Management) Ltd,0
South Ribble Borough Council,http://statistics.data.gov.uk/id/local-authority/30UE,Recreation & Sport,Furniture- Equip & Materials,4010,LE3220A PXB Board,10/11/2021,0000473042,882.50,Revenue,RLSS UK Enterprises Limited,0
South Ribble Borough Council,http://statistics.data.gov.uk/id/local-authority/30UE,Capital,Capital Other Land & Bldgs,C230,"Mckenzie Arms  Works � PCSA appointment as per NAME REDACTED request Value - 35,816",17/11/2021,0000473149,"6,983.00",Revenue,RP Tyson Construction Ltd,0
South Ribble Borough Council,http://statistics.data.gov.uk/id/local-authority/30UE,Open Spaces,Services,4570,Arboricult Emergency work 04/11/2021 - clearing a wind blown Cherry tree (Medium / Large) to rear of ADDRESS REDACTED. Waste left on site,24/11/2021,0000473406,480.00,Revenue,RUSS ASPINALL T/A BEARDWOOD TREE SERVICE,0
South Ribble Borough Council,http://statistics.data.gov.uk/id/local-authority/30UE,Recreation & Sport,Furniture- Equip & Materials,4040,,19/11/2021,0000473343,3.98,Revenue,S R B C,0
South Ribble Borough Council,http://statistics.data.gov.uk/id/local-authority/30UE,Central Support Services,Furniture- Equip & Materials,4010,,19/11/2021,0000473343,6.75,Revenue,S R B C,0
South Ribble Borough Council,http://statistics.data.gov.uk/id/local-authority/30UE,Democratic Represent and  Mgnt,Miscellaneous Expenses,4851,,19/11/2021,0000473343,7.50,Revenue,S R B C,0
South Ribble Borough Council,http://statistics.data.gov.uk/id/local-authority/30UE,Open Spaces,Furniture- Equip & Materials,4040,,19/11/2021,0000473343,39.91,Revenue,S R B C,0
South Ribble Borough Council,http://statistics.data.gov.uk/id/local-authority/30UE,Open Spaces,Direct Transport Costs,3131,,19/11/2021,0000473343,9.80,Revenue,S R B C,0
South Ribble Borough Council,http://statistics.data.gov.uk/id/local-authority/30UE,Open Spaces,Furniture- Equip & Materials,4010,,19/11/2021,0000473343,9.80,Revenue,S R B C,0
South Ribble Borough Council,http://statistics.data.gov.uk/id/local-authority/30UE,Open Spaces,Expenses,4657,,19/11/2021,0000473343,19.48,Revenue,S R B C,0
South Ribble Borough Council,http://statistics.data.gov.uk/id/local-authority/30UE,Open Spaces,Furniture- Equip & Materials,4010,,19/11/2021,0000473343,3.32,Revenue,S R B C,0
South Ribble Borough Council,http://statistics.data.gov.uk/id/local-authority/30UE,Street Cleansing,Furniture- Equip & Materials,4040,,19/11/2021,0000473343,5.82,Revenue,S R B C,0
South Ribble Borough Council,http://statistics.data.gov.uk/id/local-authority/30UE,Street Cleansing,Furniture- Equip & Materials,4010,,19/11/2021,0000473343,7.28,Revenue,S R B C,0
South Ribble Borough Council,http://statistics.data.gov.uk/id/local-authority/30UE,Open Spaces,Printing- Stat & Office Expens,4136,,19/11/2021,0000473343,16.58,Revenue,S R B C,0
South Ribble Borough Council,http://statistics.data.gov.uk/id/local-authority/30UE,Central Support Services,Furniture- Equip & Materials,4040,,19/11/2021,0000473343,16.67,Revenue,S R B C,0
South Ribble Borough Council,http://statistics.data.gov.uk/id/local-authority/30UE,Central Support Services,Direct Transport Costs,3137,,19/11/2021,0000473343,133.00,Revenue,S R B C,0
South Ribble Borough Council,http://statistics.data.gov.uk/id/local-authority/30UE,Homelessness,Grants & Subscriptions,4730,,19/11/2021,0000473343,92.70,Revenue,S R B C,0
South Ribble Borough Council,http://statistics.data.gov.uk/id/local-authority/30UE,Community Development,Miscellaneous Expenses,4851,,19/11/2021,0000473343,40.00,Revenue,S R B C,0
South Ribble Borough Council,http://statistics.data.gov.uk/id/local-authority/30UE,Regulatory Services,Furniture- Equip & Materials,4010,,19/11/2021,0000473343,19.75,Revenue,S R B C,0
South Ribble Borough Council,http://statistics.data.gov.uk/id/local-authority/30UE,Short Term Debtors,Balance Sheet,0030,Professional fees for works in relation to Leyland test track,03/11/2021,0000472990,"2,135.00",Revenue,Sanderson Weatherall LLP,0
South Ribble Borough Council,http://statistics.data.gov.uk/id/local-authority/30UE,Short Term Debtors,Balance Sheet,0030,Professional fees for works in relation to Leyland test track,24/11/2021,0000473275,"1,592.67",Revenue,Sanderson Weatherall LLP,0
South Ribble Borough Council,http://statistics.data.gov.uk/id/local-authority/30UE,Recreation & Sport,Energy Costs,2304,29/5 to 1/9/21,10/11/2021,0000473123,509.37,Revenue,SCOTTISH HYDRO ELECTRIC,0
South Ribble Borough Council,http://statistics.data.gov.uk/id/local-authority/30UE,Recreation & Sport,Energy Costs,2304,29/5 to 1/9/21,10/11/2021,0000473124,"1,019.44",Revenue,SCOTTISH HYDRO ELECTRIC,0
South Ribble Borough Council,http://statistics.data.gov.uk/id/local-authority/30UE,Recreation & Sport,Energy Costs,2307,CCL,10/11/2021,0000473124,69.89,Revenue,SCOTTISH HYDRO ELECTRIC,0
South Ribble Borough Council,http://statistics.data.gov.uk/id/local-authority/30UE,Capital,Capital Other Land & Bldgs,C230,"Cost of Consultancy Support on project RIBA Stage 1-2 for extra care project, West Paddock.",17/11/2021,0000473319,"1,140.00",Revenue,SDA Consulting LLP,0
South Ribble Borough Council,http://statistics.data.gov.uk/id/local-authority/30UE,Surplus or Deficit on Trading,Premises Repair & Mtne,2020,Evening security cover due to the intruder alarm at the museum failing. As per NAME REDACTED request. As per Order acknowledgement,10/11/2021,0000473194,363.16,Revenue,SECTOR SECURITY SERVICES LTD,0
South Ribble Borough Council,http://statistics.data.gov.uk/id/local-authority/30UE,Central Support Services,Salaries,1121,COST OF ENGAGING AGENCY LOCUM SOLICITOR FOR 4 DAYS PER WEEK FROM 7 SEPTEMBER 2021 UNTIL CHRISTMAS 2021,10/11/2021,0000472879,"1,828.56",Revenue,SELLICK PARTNERSHIP LTD,0
South Ribble Borough Council,http://statistics.data.gov.uk/id/local-authority/30UE,Central Support Services,Salaries,1121,COST OF ENGAGING AGENCY LOCUM SOLICITOR FOR 4 DAYS PER WEEK FROM 7 SEPTEMBER 2021 UNTIL CHRISTMAS 2021,10/11/2021,0000473078,"1,885.56",Revenue,SELLICK PARTNERSHIP LTD,0
South Ribble Borough Council,http://statistics.data.gov.uk/id/local-authority/30UE,Central Support Services,Salaries,1121,COST OF ENGAGING AGENCY LOCUM SOLICITOR FOR 4 DAYS PER WEEK FROM 7 SEPTEMBER 2021 UNTIL CHRISTMAS 2021,10/11/2021,0000473193,"1,948.26",Revenue,SELLICK PARTNERSHIP LTD,0
South Ribble Borough Council,http://statistics.data.gov.uk/id/local-authority/30UE,Central Support Services,Salaries,1121,COST OF ENGAGING AGENCY LOCUM SOLICITOR FOR 4 DAYS PER WEEK FROM 7 SEPTEMBER 2021 UNTIL CHRISTMAS 2021,17/11/2021,0000473367,"1,871.31",Revenue,SELLICK PARTNERSHIP LTD,0
South Ribble Borough Council,http://statistics.data.gov.uk/id/local-authority/30UE,Recreation & Sport,Services,4510,June 2021 Direct Debit Collection Fee,10/11/2021,0000473043,"8,271.91",Revenue,SERCO LEISURE (OP) LTD,0
South Ribble Borough Council,http://statistics.data.gov.uk/id/local-authority/30UE,Homelessness,Grants & Subscriptions,4730,"Shelter Training, Housing Law and Advice part A",10/11/2021,0000473181,280.00,Revenue,SHELTER PUBLICATIONS,0
South Ribble Borough Council,http://statistics.data.gov.uk/id/local-authority/30UE,Development Control,Furniture- Equip & Materials,4010,"Lease Rental 14 Nov 2021 - 13 Feb 2022, HP XL-3600 Wide Format Printer, 95L1H039",10/11/2021,0000473131,"1,015.29",Revenue,Siemens Financial Services Limited,0
South Ribble Borough Council,http://statistics.data.gov.uk/id/local-authority/30UE,Corporate Management,Furniture- Equip & Materials,4010,"Face coverings x24 boxes, Disposable gloves, XL x6 boxes of 100, L x4 boxes of 100, M x12 boxes of 100, S x2 boxes of 100 NAME REDACTED",03/11/2021,0000472901,355.20,Revenue,SMART IMAGE WORKWEAR,0
South Ribble Borough Council,http://statistics.data.gov.uk/id/local-authority/30UE,Central Support Services,Services,4570,1 x spec repair VU58JXK JFC17442,17/11/2021,0000473380,"1,445.00",Revenue,Southfield RCV Services Limited,0
South Ribble Borough Council,http://statistics.data.gov.uk/id/local-authority/30UE,Central Support Services,Furniture- Equip & Materials,4040,2 x Roller leaver arm bush-BIN1047,03/11/2021,0000472904,10.28,Revenue,SPALDINGS,0
South Ribble Borough Council,http://statistics.data.gov.uk/id/local-authority/30UE,Central Support Services,Furniture- Equip & Materials,4040,5 x Roller adapter- BIN 1048,03/11/2021,0000472904,49.00,Revenue,SPALDINGS,0
South Ribble Borough Council,http://statistics.data.gov.uk/id/local-authority/30UE,Central Support Services,Furniture- Equip & Materials,4040,6 x Scraper Wires - BIN 1060,03/11/2021,0000472904,51.00,Revenue,SPALDINGS,0
South Ribble Borough Council,http://statistics.data.gov.uk/id/local-authority/30UE,Central Support Services,Furniture- Equip & Materials,4040,4 x Cylinder adjuster nut- BIN 1110,03/11/2021,0000472904,131.00,Revenue,SPALDINGS,0
South Ribble Borough Council,http://statistics.data.gov.uk/id/local-authority/30UE,Central Support Services,Furniture- Equip & Materials,4040,10 x Adjuster rod- BIN 1111,03/11/2021,0000472904,308.00,Revenue,SPALDINGS,0
South Ribble Borough Council,http://statistics.data.gov.uk/id/local-authority/30UE,Central Support Services,Furniture- Equip & Materials,4040,2 x Adjuster Screw -BIN 1117,03/11/2021,0000472904,20.80,Revenue,SPALDINGS,0
South Ribble Borough Council,http://statistics.data.gov.uk/id/local-authority/30UE,Central Support Services,Furniture- Equip & Materials,4040,120 x Shim Washers- BIN 1121,03/11/2021,0000472904,192.15,Revenue,SPALDINGS,0
South Ribble Borough Council,http://statistics.data.gov.uk/id/local-authority/30UE,Central Support Services,Furniture- Equip & Materials,4040,3 x Rear roller step pivot bolts-BIN 1122,03/11/2021,0000472904,32.85,Revenue,SPALDINGS,0
South Ribble Borough Council,http://statistics.data.gov.uk/id/local-authority/30UE,Central Support Services,Furniture- Equip & Materials,4040,45 x Rubber Bush-BIN 1123,03/11/2021,0000472904,112.50,Revenue,SPALDINGS,0
South Ribble Borough Council,http://statistics.data.gov.uk/id/local-authority/30UE,Central Support Services,Furniture- Equip & Materials,4040,6 x Roller Clamp Bolt- BIN1124,03/11/2021,0000472904,47.70,Revenue,SPALDINGS,0
South Ribble Borough Council,http://statistics.data.gov.uk/id/local-authority/30UE,Central Support Services,Furniture- Equip & Materials,4040,3 x Roller adjuster  nut- BIN 1125,03/11/2021,0000472904,32.40,Revenue,SPALDINGS,0
South Ribble Borough Council,http://statistics.data.gov.uk/id/local-authority/30UE,Central Support Services,Furniture- Equip & Materials,4040,3 x Lift ram main pivot bush - BIN 1134,03/11/2021,0000472904,25.80,Revenue,SPALDINGS,0
South Ribble Borough Council,http://statistics.data.gov.uk/id/local-authority/30UE,Central Support Services,Furniture- Equip & Materials,4040,60 x Deck cylinder bearings-BIN1138,03/11/2021,0000472904,411.00,Revenue,SPALDINGS,0
South Ribble Borough Council,http://statistics.data.gov.uk/id/local-authority/30UE,Central Support Services,Furniture- Equip & Materials,4040,6x excentric bush-BIN1142,03/11/2021,0000472904,57.00,Revenue,SPALDINGS,0
South Ribble Borough Council,http://statistics.data.gov.uk/id/local-authority/30UE,Central Support Services,Furniture- Equip & Materials,4040,3 x Scraper Wire - BIN 1003,03/11/2021,0000472904,25.35,Revenue,SPALDINGS,0
South Ribble Borough Council,http://statistics.data.gov.uk/id/local-authority/30UE,Central Support Services,Furniture- Equip & Materials,4040,1 x pack of 100 Sole plate screws- BIN 1005,03/11/2021,0000472904,28.00,Revenue,SPALDINGS,0
South Ribble Borough Council,http://statistics.data.gov.uk/id/local-authority/30UE,Central Support Services,Furniture- Equip & Materials,4040,2 x Sole plates BIN 1004,03/11/2021,0000472904,55.66,Revenue,SPALDINGS,0
South Ribble Borough Council,http://statistics.data.gov.uk/id/local-authority/30UE,Community Development,Services,4581,Grant for re-socialisation project,03/11/2021,0000472909,"1,000.00",Revenue,ST AIDANS PCC,0
South Ribble Borough Council,http://statistics.data.gov.uk/id/local-authority/30UE,Service Management & Support,Direct Transport Costs,3132,"17000 litres diesel @ 116.11ppl into the feeder tank at Unit 81 Bison Place, Moss Side - Key for cabinet available",10/11/2021,0000472943,"19,738.70",Revenue,Standard Fuel Oils LtdMain,0
South Ribble Borough Council,http://statistics.data.gov.uk/id/local-authority/30UE,Service Management & Support,Direct Transport Costs,3132,"17000 litres @ 116.65 ppl into the feeder tank at Unit 81 Bison Place, Moss Side - Key for cabinet available",17/11/2021,0000473290,"19,830.50",Revenue,Standard Fuel Oils LtdMain,0
South Ribble Borough Council,http://statistics.data.gov.uk/id/local-authority/30UE,Capital,Deferrd Chgs-Improvemnt Grants,C570,DFG WORK TO SUPPLY AND INSTALL A STAIRLIFT AT ADDRESS REDACTED AS PER QUOTE SUPPLIED OF 5496.00 TOTAL COST 5496.00,17/11/2021,0000473360,"5,496.00",Revenue,Stannah Lift Services Ltd,0
South Ribble Borough Council,http://statistics.data.gov.uk/id/local-authority/30UE,Central Support Services,Furniture- Equip & Materials,4026,"Hardware Support, Cisco Catalyst 3750X 48 Port POE Switch Support 9.00 Minimum Term 108.00 Device /Yr 972.00 972.00 /Yr 1,2,3,4,5",03/11/2021,0000472520,"7,812.00",Revenue,Starcom Technologies,0
South Ribble Borough Council,http://statistics.data.gov.uk/id/local-authority/30UE,Central Support Services,Communications & Comuting,4241,"4x iPad Air WiFi/Cellular 64Gb - Space Grey, 4x OtterBox Defender Series for iPad Air 10.9'' (4th Gen)",17/11/2021,0000473315,"2,428.00",Revenue,Starcom Technologies,0
South Ribble Borough Council,http://statistics.data.gov.uk/id/local-authority/30UE,Central Support Services,Communications & Comuting,4244,1x iPhone 12 Mini 128Gb - Black,17/11/2021,0000473316,553.00,Revenue,Starcom Technologies,0
South Ribble Borough Council,http://statistics.data.gov.uk/id/local-authority/30UE,Community Development,Miscellaneous Expenses,4851,"2x iPad Air 64Gb - Space Grey, 2x Logitech Keyboard Folio Case - iPad Air, 2x Compulocks iPad Air 10.9-inch Shield Screen Protector",17/11/2021,0000473349,"1,402.40",Revenue,Starcom Technologies,0
South Ribble Borough Council,http://statistics.data.gov.uk/id/local-authority/30UE,Capital,Capital Other Land & Bldgs,C230,"Project Management of construction of new Playing pitch, Bamber Bridge Leisure Centre, support the preparation for delivery of the Development",12/11/2021,0000473040,"4,000.00",Revenue,Steve Wells Associates Ltd,0
South Ribble Borough Council,http://statistics.data.gov.uk/id/local-authority/30UE,Capital,Capital Other Land & Bldgs,C230,"Provision of Mechanical, Electrical and Plumbing Services to RIBA Stage 3 for the Leyland Town Deal Development",03/11/2021,0000473033,"3,585.00",Revenue,STEVEN A HUNT & ASSOCIATES LTD,0
South Ribble Borough Council,http://statistics.data.gov.uk/id/local-authority/30UE,Community Development,Catering,4310,Lunch for Mental Health First Aid course - 18-21st October,24/11/2021,0000473460,351.36,Revenue,Style Catering,0
South Ribble Borough Council,http://statistics.data.gov.uk/id/local-authority/30UE,Corporate Management,Miscellaneous Expenses,4851,Tempo Time Credits Project for Chorley and South Ribble Quarter 1 and Quarter 2,10/11/2021,0000472916,"10,753.75",Revenue,Tempo Time Credits Ltd,0
South Ribble Borough Council,http://statistics.data.gov.uk/id/local-authority/30UE,Corporate Management,Miscellaneous Expenses,4851,Tempo Time Credits Project for Chorley and South Ribble Quarter 1 and Quarter 2,10/11/2021,0000472917,"10,753.75",Revenue,Tempo Time Credits Ltd,0
South Ribble Borough Council,http://statistics.data.gov.uk/id/local-authority/30UE,Central Support Services,Furniture- Equip & Materials,4040,Material and parts for repairs for damaged vehicle as per quotation VA19KOX JFC17488,17/11/2021,0000473238,"1,556.84",Revenue,TERBERG MATEC UK LTD,0
South Ribble Borough Council,http://statistics.data.gov.uk/id/local-authority/30UE,Central Support Services,Communications & Comuting,4248,1 x ReachDeck Legacy 5 year subscription 17/4/2021 to 17/4/2026,17/11/2021,0000468467,"10,000.00",Revenue,Texthelp,0
South Ribble Borough Council,http://statistics.data.gov.uk/id/local-authority/30UE,Central Support Services,Miscellaneous Expenses,4851,"ADVERTISEMENT RECRUITMENT ONLINE JOB LISTING - BRONZE, LAW SOCIETY GAZETTE JOBS",17/11/2021,0000472973,995.00,Revenue,THE LAW SOCIETY,0
South Ribble Borough Council,http://statistics.data.gov.uk/id/local-authority/30UE,Central Support Services,Salaries,1121,"For Agency Staff, NAME REDACTED to work a total of 81 days to first week of Jan 2022  7th Jan 2022 extension.",03/11/2021,0000472804,"1,400.00",Revenue,The Oyster Partnership,0
South Ribble Borough Council,http://statistics.data.gov.uk/id/local-authority/30UE,Central Support Services,Salaries,1121,"For Agency Staff, NAME REDACTED to work a total of 81 days to first week of Jan 2022  7th Jan 2022 extension.",03/11/2021,0000473000,"1,400.00",Revenue,The Oyster Partnership,0
South Ribble Borough Council,http://statistics.data.gov.uk/id/local-authority/30UE,Central Support Services,Salaries,1121,"For Agency Staff, NAME REDACTED to work a total of 81 days to first week of Jan 2022  7th Jan 2022 extension.",17/11/2021,0000473207,"1,400.00",Revenue,The Oyster Partnership,0
South Ribble Borough Council,http://statistics.data.gov.uk/id/local-authority/30UE,Central Support Services,Salaries,1121,"For Agency Staff, NAME REDACTED to work a total of 81 days to first week of Jan 2022  7th Jan 2022 extension.",24/11/2021,0000473312,"1,120.00",Revenue,The Oyster Partnership,0
South Ribble Borough Council,http://statistics.data.gov.uk/id/local-authority/30UE,Capital,Capital Other Land & Bldgs,C230,Leyland Town Deal 15x Printed A1 correx fluted boards,17/11/2021,0000473314,465.00,Revenue,The Print Quarter,0
South Ribble Borough Council,http://statistics.data.gov.uk/id/local-authority/30UE,Central Support Services,Energy Costs,2304,30/9 to 22/10/21,10/11/2021,0000473103,891.58,Revenue,Total Gas & power Ltd,0
South Ribble Borough Council,http://statistics.data.gov.uk/id/local-authority/30UE,Economic Development,Energy Costs,2304,31/7 to 31/10/21,17/11/2021,0000473140,476.06,Revenue,Total Gas & power Ltd,0
South Ribble Borough Council,http://statistics.data.gov.uk/id/local-authority/30UE,Central Support Services,Energy Costs,2304,31/7 to 31/10/21,17/11/2021,0000473141,991.06,Revenue,Total Gas & power Ltd,0
South Ribble Borough Council,http://statistics.data.gov.uk/id/local-authority/30UE,Central Support Services,Energy Costs,2303,1/10 to 31/10/21,17/11/2021,0000473188,"3,595.29",Revenue,Total Gas & power Ltd,0
South Ribble Borough Council,http://statistics.data.gov.uk/id/local-authority/30UE,Open Spaces,Energy Costs,2303,1/10 to 31/10/21,17/11/2021,0000473190,941.23,Revenue,Total Gas & power Ltd,0
South Ribble Borough Council,http://statistics.data.gov.uk/id/local-authority/30UE,Central Support Services,Energy Costs,2303,1/10 to 31/10/21,17/11/2021,0000473191,"2,773.34",Revenue,Total Gas & power Ltd,0
South Ribble Borough Council,http://statistics.data.gov.uk/id/local-authority/30UE,Open Spaces,Energy Costs,2303,1/10 to 31/10/21,17/11/2021,0000473255,636.09,Revenue,Total Gas & power Ltd,0
South Ribble Borough Council,http://statistics.data.gov.uk/id/local-authority/30UE,Open Spaces,Energy Costs,2303,1/8 to 1/11/21,17/11/2021,0000473262,516.66,Revenue,Total Gas & power Ltd,0
South Ribble Borough Council,http://statistics.data.gov.uk/id/local-authority/30UE,Open Spaces,Energy Costs,2303,4/8 to 3/11/21,17/11/2021,0000473264,729.11,Revenue,Total Gas & power Ltd,0
South Ribble Borough Council,http://statistics.data.gov.uk/id/local-authority/30UE,Culture & Heritage,Energy Costs,2304,31/7 to 31/10/21,17/11/2021,0000473309,453.73,Revenue,Total Gas & power Ltd,0
South Ribble Borough Council,http://statistics.data.gov.uk/id/local-authority/30UE,Open Spaces,Energy Costs,2304,31/7 to 31/10/21,17/11/2021,0000473310,364.17,Revenue,Total Gas & power Ltd,0
South Ribble Borough Council,http://statistics.data.gov.uk/id/local-authority/30UE,Economic Development,Energy Costs,2303,1/10 to 31/10/21,17/11/2021,0000473345,"3,240.29",Revenue,Total Gas & power Ltd,0
South Ribble Borough Council,http://statistics.data.gov.uk/id/local-authority/30UE,Recreation & Sport,Miscellaneous Expenses,4842,"550 Nutrition Mission Booklets @ 267, 1200 Scoot Safe Booklets @ 388, Artwork for After School Club Leaflets @ 65",03/11/2021,0000472933,388.00,Revenue,TOWNSEND PRINT SERVICES LTD,0
South Ribble Borough Council,http://statistics.data.gov.uk/id/local-authority/30UE,Recreation & Sport,Miscellaneous Expenses,4842,"550 Nutrition Mission Booklets @ 267, 1200 Scoot Safe Booklets @ 388, Artwork for After School Club Leaflets @ 65",03/11/2021,0000472934,267.00,Revenue,TOWNSEND PRINT SERVICES LTD,0
South Ribble Borough Council,http://statistics.data.gov.uk/id/local-authority/30UE,Economic Development,Miscellaneous Expenses,4851,Face Painters for A Taste of Leyland - 25 September 2021. 2x face painters.,03/11/2021,0000472443,450.00,Revenue,UK Media Events Ltd,0
South Ribble Borough Council,http://statistics.data.gov.uk/id/local-authority/30UE,Economic Development,Grants & Subscriptions,4730,Grant to support delivery of Credit Union in South Ribble Year 1,10/11/2021,0000473121,"21,761.00",Revenue,Unify Credit Union Ltd,0
South Ribble Borough Council,http://statistics.data.gov.uk/id/local-authority/30UE,Democratic Represent and  Mgnt,Furniture- Equip & Materials,4012,2021 / 2022 annual contract for the monthly rental of hot drinks machines at the civic centre including environmental charge.,10/11/2021,0000473079,279.04,Revenue,VENDING ENTERPRISES,0
South Ribble Borough Council,http://statistics.data.gov.uk/id/local-authority/30UE,Democratic Represent and  Mgnt,Catering,4311,Stock for coffee machines November 21,17/11/2021,0000473407,611.70,Revenue,VENDING ENTERPRISES,0
South Ribble Borough Council,http://statistics.data.gov.uk/id/local-authority/30UE,Democratic Represent and  Mgnt,Expenses,463A,"PLEASE PROVIDE SERVICES AS REQUESTED, REMEMBRANCE SUNDAY IN LEYLAND ON 14 NOVEMBER 2021 AS PER QUOTATION",24/11/2021,0000473478,"2,500.00",Revenue,VENTBROOK LTD,0
South Ribble Borough Council,http://statistics.data.gov.uk/id/local-authority/30UE,Economic Development,Miscellaneous Expenses,4851,Traffic Management for Lostock Hall Remembrance Parade,24/11/2021,0000473493,"2,200.00",Revenue,VENTBROOK LTD,0
South Ribble Borough Council,http://statistics.data.gov.uk/id/local-authority/30UE,Community Development,Rents & Rates,2402,Venue Hire for HAF Delivery in summer.,03/11/2021,0000472946,300.00,Revenue,Vernon Carus Sports Club,0
South Ribble Borough Council,http://statistics.data.gov.uk/id/local-authority/30UE,Democratic Represent and  Mgnt,Expenses,4630,"Cabinet in the community - Rental Bosch Dicentis wireless system (1 x WAP, 10 x delegate units (no screen, gooseneck mics, batteries)",10/11/2021,0000472939,"2,950.00",Revenue,VP-AV LTD,0
South Ribble Borough Council,http://statistics.data.gov.uk/id/local-authority/30UE,Community Development,Services,4510,HAF summer holiday provision at Wade Hall Community Centre 3/8 to 27/8.,17/11/2021,0000473377,"9,408.00",Revenue,Wade Hall Community Association,0
South Ribble Borough Council,http://statistics.data.gov.uk/id/local-authority/30UE,Central Support Services,Communications & Comuting,4241,"Leyland Leisure Centre, Immediate Connection: Commercial 4G router and E Sim, Internal Antenna, External Antenna. Cherry Picker not required",03/11/2021,0000472796,"1,433.00",Revenue,Wave Internet,0
South Ribble Borough Council,http://statistics.data.gov.uk/id/local-authority/30UE,Recreation & Sport,Premises Repair & Mtne,2021,"Cost of  hire of 1 x anti vandal toilet unit, 1 x 500 gallon effluent tank & 1 x anti vandal canteen unit to be located at Penwortham Holme",17/11/2021,0000473274,434.00,Revenue,Wernick Hire Ltd,0
South Ribble Borough Council,http://statistics.data.gov.uk/id/local-authority/30UE,Capital,Capital Other Land & Bldgs,C230,STRUCTURAL AND DRAINAGE SERVICES TO RIBA STAGE 3 FOR THE LEYLAND TOWN DEAL DEVELOPMENT,03/11/2021,0000473032,"13,477.24",Revenue,Woolgar Hunter Limited,0
South Ribble Borough Council,http://statistics.data.gov.uk/id/local-authority/30UE,Central Support Services,Furniture- Equip & Materials,4040,LUBRICATION SPRAY 893085500,24/11/2021,0000473286,112.50,Revenue,WURTH UK LTD,0
South Ribble Borough Council,http://statistics.data.gov.uk/id/local-authority/30UE,Central Support Services,Furniture- Equip & Materials,4040,ADHESIVE LUBRICANT HHS 2000,24/11/2021,0000473286,50.80,Revenue,WURTH UK LTD,0
South Ribble Borough Council,http://statistics.data.gov.uk/id/local-authority/30UE,Central Support Services,Furniture- Equip & Materials,4040,SPRAY GREASE HSW100,24/11/2021,0000473286,94.99,Revenue,WURTH UK LTD,0
South Ribble Borough Council,http://statistics.data.gov.uk/id/local-authority/30UE,Suspended Items,Services,4510,"To carry out Phase 2 invasive site investigation survey to land on Quin Street, Leyland, as per quotation ref QX2097",17/11/2021,0000472024,"4,315.00",Revenue,Your Environmental Company Ltd T/A YourEnvironment,0
South Ribble Borough Council,http://statistics.data.gov.uk/id/local-authority/30UE,Central Support Services,Communications & Comuting,4247,Annual PO for lines at Longton Brickcroft & Leyland Museum for period 01/04/21 - 31/03/22,03/11/2021,0000472931,440.86,Revenue,Zen Internet,0
